{"text_format":"1","workbook":"xlsx","n_sheets":10,"sheets":["Prokoll-Restavfall"," Protokoll-Matavfall","Övergripande","Restavfall-Villa","Restavfall-Lgh","Matavfall-Villa","Matavfall-Lgh","Grovavfall","Avfall Web","Allm. Data"],"not_rendered":{"charts":0,"images":4,"macros":1,"external_links":0,"defined_names":1,"comments":9,"pivot_tables":0},"unopened":[],"bounds":{"document_bytes":16777216,"sheet_cells":100000,"rows_first":2000,"rows_last":500,"rows_between":2000,"halvings":0,"cell_chars":16384,"cell_head_chars":4096},"cells_cut":0,"cells_raw":0,"read":"whole","date_system":"1900"}

{"sheet":"Prokoll-Restavfall","index":0,"n_rows":107,"n_cols":7,"rows_kept":107,"cut":false,"hidden":false,"merged":[]}
[]
[]
["PROTOKOLL - plockanalys av hushållens restavfall"]
[]
["Datum för provinsamling "]
["Datum för sortering "]
[]
["MODERPROVETS NAMN OCH DELPROVETS NUMMER"]
["Moderprovets namn",null,null,"Delområde, bebyggelsetyp, avfallstyp"]
["Delprovets nummer",null,null,"1, 2, 3, 4, 5"]
[]
[]
[]
["ANALYSRESULTAT"]
["Primär fraktion ","Sekundär fraktion","Vikt (kg)","Tertiär fraktion (urval)","Vikt (kg)","Antal (st)","Anmärkning"]
["Bioavfall","Matavfall ",null,"Onödigt matavfall"]
[null,null,null,"Oundvikligt matavfall"]
[null,null,null,"Övrigt matavfall, exkl hushållspapper och servetter"]
[null,"Trädgårdsavfall"]
["Papper","Returpapper*",null,"Dags- och veckotidningar"]
[null,null,null,"Reklamblad, produktkataloger m.m."]
[null,"Well*"]
[null,"Pappersförpackningar*",null,"Pappersförp. utom avfallsbärare2"]
[null,null,null,"Avfallsbärare2"]
[null,"Övrigt papper5",null,"Övrigt papper utom avfallsbärare4"]
[null,null,null,"Avfallsbärare4"]
["Plast","Mjukplastförpackningar*",null,"Mjukplastförp. utom avfallsbärare2"]
[null,null,null,"Avfallsbärare2"]
[null,"Frigolit*"]
[null,"Hårdplastförpackningar*",null,"Dryckesförpackningar med svensk pant"]
[null,null,null,"Dryckesförpackningar utan pant"]
[null,null,null,"Hårdplastförpackningar, ej dryck"]
[null,"Övrig plast",null,"Övrig plast utom avfallsbärare3"]
[null,null,null,"Avfallsbärare3"]
["Glas","Glasförpackningar*",null,"Dryckesförpackningar med svensk pant"]
[null,null,null,"Dryckesförpackningar utan pant"]
[null,null,null,"Glasförpackningar, ej dryck"]
[null,"Övrigt glas"]
["Metall","Metallförpackningar*",null,"Dryckesförpackningar med svensk pant"]
[null,null,null,"Dryckesförpackningar utan pant"]
[null,null,null,"Metallförpackningar, ej dryck"]
[null,"Övrig metall"]
["Övrigt oorganiskt","Notera typ av avfall"]
["Farligt avfall","Farligt avfall",null,"Kanyler"]
["(exkl. elavfall)",null,null,"Läkemedel"]
[null,null,null,"Övrigt farligt avfall"]
["Elavfall*","Lampor"]
[null,"Batterier, inkl. inbyggda"]
[null,"Smått elavfall"]
["Textil","Textil",null,"Återvinningsbar textil"]
[null,null,null,"Återanvändningsbar textil"]
["Övrigt","Trä"]
[null,"Blöjor, bindor o dyl"]
[null,"Allt annat. Notera typ av avfall"]
["Totalt",null,{"$f":"SUM(C16:C54)","v":0},null,{"$f":"SUM(E16:E54)","v":0}]
[]
["Kontrollera att totalvikten stämmer med delprovets vikt ovan."]
["Notera antal enheter av Kanyler, Lampor och Batterier i kolumn \"Antal\"."]
["Notera antal PET, glas och metallförpackningar med resp utan pant i kolumn \"Antal\"."]
["*Omfattas av producentansvar."]
[]
["1) Avser påsar för matavfall vid plockanalys av matavfallsfraktion. Räknas som oundvikligt matavfall vid utvärdering av matsvinn."]
["2) Avser butikskassar som används som avfallsbärare, t.ex. bärkassar eller frukt- och gröntpåsar."]
["3) Avser påsar som tillhandahålls av kommunen för insamling av restavfall, förpackningar eller returpapper"]
["samt soppåsar på rulle som säljs i handeln."]
["4) Avser påsar som tillhandahålls av kommunen för insamling av matavfall."]
["5) Inkl. hushållspapper och servetter."]
[]
["KOMMENTARER"]
[]
[]
[]
[]
[]
[]
[]
[]
[]
[]
[]
["PROTOKOLL - plockanalys av hushållens restavfall (forts.)"]
[]
["Datum för provinsamling ",{"$f":"IF(B5=\"\",\"\",B5)","v":""}]
["Datum för sortering ",{"$f":"IF(B6=\"\",\"\",B6)","v":""}]
[]
["MODERPROVETS NAMN OCH DELPROVETS NUMMER"]
["Moderprovets namn",{"$f":"IF(B9=\"\",\"\",B9)","v":""},null,"Delområde, bebyggelsetyp, avfallstyp"]
["Delprovets nummer",{"$f":"IF(B10=\"\",\"\",B10)","v":""},null,"1, 2, 3, 4, 5"]
[]
["MODERPROVETS OCH DELPROVETS VIKT"]
["Vikt sopbil med avfall"]
["Vikt sopbil utan avfall"]
["Moderprovets vikt, kg",null,null,"Vikt sopbil med avfall minus vikt sopbil utan avfall."]
["Delprovets vikt, kg",null,null,"Vikt efter provneddelning, ca 100 kg"]
[]
["UPPGIFTER OM MODERPROVET"]
["Antal hushåll",null,null,"Som moderprovet representerar."]
["Typ av hushåll (eller verksamheter)",null,null,"T.ex. villa, lägenhet, fritidshus"]
["Antal dagar",null,null,"Som moderprovet representerar."]
[]
["ADMINISTRATIVA UPPGIFTER"]
["Chaufförens namn och telefonnummer"]
["Ansvarig arbetsledares namn"]
["Sorterarnas namn"]
["Protokollförarens namn"]
[]
["KOMMENTARER"]

{"sheet":" Protokoll-Matavfall","index":1,"n_rows":88,"n_cols":7,"rows_kept":88,"cut":false,"hidden":false,"merged":[]}
[]
[]
["PROTOKOLL - plockanalys av hushållens matavfall"]
[]
["Datum för provinsamling "]
["Datum för sortering "]
[]
["MODERPROVETS NAMN OCH DELPROVETS NUMMER"]
["Moderprovets namn",null,null,"Delområde, bebyggelsetyp, avfallstyp"]
["Delprovets nummer",null,null,"1, 2, 3, 4, 5"]
[]
[]
[]
["ANALYSRESULTAT"]
["Primär fraktion ","Sekundär fraktion","Vikt (kg)","Tertiär fraktion (urval)","Vikt (kg)","Antal (st)","Anmärkning"]
["Bioavfall","Matavfall2",null,"Onödigt matavfall"]
[null,null,null,"Oundvikligt matavfall"]
[null,null,null,"Övrigt matavfall, inkl hushållspapper och servetter"]
[null,null,null,"Avfallsbärare1"]
[null,"Trädgårdsavfall"]
["Papper","Returpapper*"]
[null,"Pappersförpackningar*"]
[null,"Övrigt papper "]
["Plast","Mjukplastförpackningar*"]
[null,"Hårdplastförpackningar*"]
[null,"Övrig plast"]
["Glas","Glasförpackningar*"]
[null,"Övrigt glas"]
["Metall","Metallförpackningar*"]
[null,"Övrig metall"]
["Övrigt oorganiskt"]
["Farligt avfall","Farligt avfall",null,"Kanyler"]
["(exkl. elavfall)",null,null,"Läkemedel"]
[null,null,null,"Övrigt farligt avfall"]
["Elavfall*","Lampor"]
[null,"Batterier, inkl. inbyggda"]
[null,"Smått elavfall"]
["Övrigt","Allt annat. Notera typ av avfall"]
["Totalt",null,{"$f":"SUM(C16:C38)","v":0},null,{"$f":"SUM(E16:E38)","v":0}]
[]
["Kontrollera att totalvikten stämmer med delprovets vikt ovan."]
["Notera antal enheter av Kanyler, Lampor och Batterier i kolumn \"Antal\"."]
[]
["*Omfattas av producentansvar."]
[]
["1) Avser påsar för matavfall vid plockanalys av matavfallsfraktion. Räknas som oundvikligt matavfall vid utvärdering av matsvinn."]
["2) Inkl. hushållspapper och servetter."]
[]
["KOMMENTARER"]
[]
[]
[]
[]
[]
[]
[]
[]
[]
[]
[]
[]
["PROTOKOLL - plockanalys av hushållens mat- och restavfall (forts.)"]
[]
["Datum för provinsamling ",{"$f":"IF(B5=\"\",\"\",B5)","v":""}]
["Datum för sortering ",{"$f":"IF(B6=\"\",\"\",B6)","v":""}]
[]
["MODERPROVETS NAMN OCH DELPROVETS NUMMER"]
["Moderprovets namn",{"$f":"IF(B9=\"\",\"\",B9)","v":""},null,"Delområde, bebyggelsetyp, avfallstyp"]
["Delprovets nummer",{"$f":"IF(B10=\"\",\"\",B10)","v":""},null,"1, 2, 3, 4, 5"]
[]
["MODERPROVETS OCH DELPROVETS VIKT"]
["Vikt sopbil med avfall"]
["Vikt sopbil utan avfall"]
["Moderprovets vikt, kg",null,null,"Vikt sopbil med avfall minus vikt sopbil utan avfall."]
["Delprovets vikt, kg",null,null,"Vikt efter provneddelning, ca 100 kg"]
[]
["UPPGIFTER OM MODERPROVET"]
["Antal hushåll",null,null,"Som moderprovet representerar."]
["Typ av hushåll (eller verksamheter)",null,null,"T.ex. villa, lägenhet, fritidshus"]
["Antal dagar",null,null,"Som moderprovet representerar."]
[]
["ADMINISTRATIVA UPPGIFTER"]
["Chaufförens namn och telefonnummer"]
["Ansvarig arbetsledares namn"]
["Sorterarnas namn"]
["Protokollförarens namn"]
[]
["KOMMENTARER"]

{"sheet":"Övergripande","index":2,"n_rows":22,"n_cols":3,"rows_kept":22,"cut":false,"hidden":false,"merged":[[17,0,17,1],[13,0,13,2],[10,0,10,1],[14,0,14,1],[16,0,16,2],[1,0,1,2],[9,0,9,2],[0,0,0,2],[5,0,5,1],[4,0,4,2],[2,1,2,2],[3,1,3,2]]}
["Plockanalys - Övergipande beskrivning"]
[]
["Kommun"]
["År (som plockanalyserna avser)"]
[]
["Kommunen i sin helhet, ej verksamheter, andel. Om kommunen gjort plockanalys i flera områden ange värden som bedöms vara representativa för kommunen eller ange viktat medelvärde. De värden som anges ska inte vara fuktkorrigerade. ",null,"Avfall web kod"]
["Andel farligt avfall i restavfall, %",{"$f":"IF(('Restavfall-Villa'!D57+'Restavfall-Lgh'!D57)=0, \"DS\",('Restavfall-Villa'!D57+'Restavfall-Lgh'!D57)/('Restavfall-Villa'!C12+'Restavfall-Lgh'!C12)*100)","v":"DS"},"P1"]
["Andel elavfall i restavfall, %",{"$f":"IF(('Restavfall-Villa'!D61+'Restavfall-Lgh'!D61)=0, \"DS\",('Restavfall-Villa'!D61+'Restavfall-Lgh'!D61)/('Restavfall-Villa'!C12+'Restavfall-Lgh'!C12)*100)","v":"DS"},"P2"]
["Andel förpackningar och returpapper i restavfall, %",{"$f":"IF(('Restavfall-Villa'!D24+'Restavfall-Villa'!D28+'Restavfall-Villa'!D35+'Restavfall-Villa'!D39+'Restavfall-Villa'!D46+'Restavfall-Villa'!D51+'Restavfall-Lgh'!D24+'Restavfall-Lgh'!D28+'Restavfall-Lgh'!D35+'Restavfall-Lgh'!D39+'Restavfall-Lgh'!D46+'Restavfall-Lgh'!D51)=0, \"DS\",     ('Restavfall-Villa'!D24+'Restavfall-Villa'!D28+'Restavfall-Villa'!D35+'Restavfall-Villa'!D39+'Restavfall-Villa'!D46+'Restavfall-Villa'!D51+'Restavfall-Lgh'!D24+'Restavfall-Lgh'!D28+'Restavfall-Lgh'!D35+'Restavfall-Lgh'!D39+'Restavfall-Lgh'!D46+'Restavfall-Lgh'!D51)/('Restavfall-Villa'!C12+'Restavfall-Lgh'!C12)*100)","v":"DS"},"P3"]
[]
["Uförare av plockanalys",null,"Avfall web kod"]
["Utförare av plockanalys",null,"P77"]
["Utförare av plockanalys, beskrivninng",null,"P88"]
[]
["Information om plockanalysen/-erna",null,"Avfall web kod"]
["Information om plockanalysen/-erna",null,"P47"]
[]
["Källsorteringgrad matavfall och matsvinn, %",null,"Avfall web kod"]
["Källsorteringsgrad matavfall, villa, %",null,"P89"]
["Källsorteringsgrad matavfall, lägenhet, %",null,"P90"]
["Matsvinn, villa, %",null,"P91"]
["Matsvinn, lägenhet, %",null,"P92"]

{"sheet":"Restavfall-Villa","index":3,"n_rows":69,"n_cols":9,"rows_kept":69,"cut":false,"hidden":false,"merged":[[0,0,0,8],[9,3,9,7],[8,3,8,7],[7,2,7,7],[6,2,6,7],[5,0,5,7],[4,0,4,1],[2,0,2,1],[3,0,3,1],[2,2,2,7],[3,2,3,7],[4,2,4,7],[13,0,13,6],[13,8,14,8],[13,7,14,7],[6,0,6,1],[7,0,7,1],[8,0,8,1],[9,0,9,1],[10,0,10,1],[11,0,11,1],[10,3,10,7]]}
["Plockanalys av restavfall - Villahushåll "]
[]
["Datum för provinsamling "]
["Datum för sortering "]
["Moderprovets namn"]
[null,null,null,null,null,null,null,null,"Avfall web kod"]
["Typ av insamlingssystem",null,null,null,null,null,null,null,"P4"]
["Annat insamlingssystem",null,null,null,null,null,null,null,"P61"]
["Andel hushåll med fastighetsnära insamling av förpackningar och returpapper, %",null,null,null,null,null,null,null,"P5"]
["Andel hushåll med hemkompost, %",null,null,null,null,null,null,null,"P6"]
["Mängd restavfall till, kg per hushåll och vecka",null,null,{"$f":"TEXT('Allm. Data'!C33,\"##\") & \" - \" &  TEXT('Allm. Data'!D33,\"##\") & \" kg är ett rimligt värde\"","v":"2 - 10 kg är ett rimligt värde"},null,null,null,null,"P53"]
["Mängd restavfall som sorterats, kg ",null,{"$f":"D69","v":0}]
[]
["Resultat från plockanalys",null,null,null,null,null,null,"Rimligt värde %","Avfall web kod"]
["Primär fraktion ","Sekundär fraktion","Tertiär fraktion (urval)","Vikt, kg","Vikt, %","Antal, st","Varav, %"]
["Bioavfall","Matavfall","Onödigt matavfall",null,{"$f":"IF(D16=\"\",\"DS\", D16/$D$69*100)","v":"DS"},null,{"$f":"IFERROR((E16/SUM(E16:E18))*100, \"DS\")","v":"DS"},{"$f":"TEXT('Allm. Data'!C35,\"##\") & \" - \" &  TEXT('Allm. Data'!D35,\"##\") & \" %\"","v":"1 - 30 %"},"P54"]
[null,null,"Oundvikligt matavfall",null,{"$f":"IF(D17=\"\",\"DS\", D17/$D$69*100)","v":"DS"}]
[null,null,"Övrigt matavfall, exkl hushållspapper och servetter",null,"DS"]
[null,null,"Summa matavfall",{"$f":"SUM(D16:D18)","v":0},{"$f":"IF(SUM(E16:E18)=0,\"DS\",SUM(E16:E18))","v":"DS"},null,null,{"$f":"TEXT('Allm. Data'!C34,\"00\") & \" - \" &  TEXT('Allm. Data'!D34,\"00\") & \" %\"","v":"10 - 50 %"},"P7"]
[null,"Trädgårdsavfall",null,null,"DS",null,null,{"$f":"TEXT('Allm. Data'!C35,\"##\") & \" - \" &  TEXT('Allm. Data'!D35,\"##\") & \" %\"","v":"1 - 30 %"},"P8"]
[null,null,"Summa bioavfall",{"$f":"SUM(D19:D20)","v":0},{"$f":"IF(SUM(E19:E20)=0,\"DS\",SUM(E19:E20))","v":"DS"}]
["Papper","Returpapper*","Dags- och veckotidningar",null,"DS",null,{"$f":"IFERROR((E22/E$24)*100, \"DS\")","v":"DS"},null,"P9a"]
[null,null,"Reklamblad, produktkataloger m.m.",null,"DS",null,{"$f":"IFERROR((E23/E$24)*100, \"DS\")","v":"DS"},null,"P9b"]
[null,null,"Summa returpapper",{"$f":"SUM(D22:D23)","v":0},{"$f":"IF(SUM(E22:E23)=0,\"DS\",SUM(E22:E23))","v":"DS"},null,null,{"$f":"TEXT('Allm. Data'!C37,\"##\") & \" - \" &  TEXT('Allm. Data'!D37,\"##\") & \" %\"","v":"1 - 30 %"},"P9"]
[null,"Förpackningar","Well*",null,"DS"]
[null,null,"Pappersförp. utom avfallsbärare2",null,"DS"]
[null,null,"Avfallsbärare2",null,"DS",null,null,null,"P10a"]
[null,null,"Summa pappersförpackningar",{"$f":"SUM(D25:D27)","v":0},{"$f":"IF(SUM(E25:E27)=0,\"DS\",SUM(E25:E27))","v":"DS"},null,null,{"$f":"TEXT('Allm. Data'!C38,\"##\") & \" - \" &  TEXT('Allm. Data'!D38,\"##\") & \" %\"","v":"2 - 30 %"},"P10"]
[null,"Övrigt papper ","Övrigt papper utom avfallsbärare",null,"DS"]
[null,null,"Avfallsbärare",null,"DS",null,null,null,"P14a"]
[null,null,"Summa övrigt papper",{"$f":"SUM(D29:D30)","v":0},{"$f":"IF(SUM(E29:E30)=0,\"DS\",SUM(E29:E30))","v":"DS"},null,null,{"$f":"TEXT('Allm. Data'!C42,\"##\") & \" - \" &  TEXT('Allm. Data'!D42,\"##\") & \" %\"","v":"10 - 60 %"},"P14"]
["Plast","Mjukplastförpackningar","Mjukplastförp. utom avfallsbärare",null,"DS"]
[null,null,"Avfallsbärare",null,"DS",null,null,null,"P11a"]
[null,"Frigolit","Frigolit",null,"DS"]
[null,null,"Summa mjuka plastförpackningar",{"$f":"SUM(D32:D34)","v":0},{"$f":"IF(SUM(E32:E34)=0,\"DS\",SUM(E32:E34))","v":"DS"},null,null,{"$f":"TEXT('Allm. Data'!C39,\"##\") & \" - \" &  TEXT('Allm. Data'!D39,\"##\") & \" %\"","v":"2 - 30 %"},"P11"]
[null,"Hårdplastförpackningar*","Hårdplastförpackningar med pant",null,"DS",null,null,null,"P65a"]
[null,null,"Hårdplastförpackningar utan pant",null,"DS",null,null,null,"P65b"]
[null,null,"Hårdplastförpackningar, ej dryck",null,"DS"]
[null,null,"Summa hårda plastförpackningar",{"$f":"SUM(D36:D38)","v":0},{"$f":"IF(SUM(E36:E38)=0,\"DS\",SUM(E36:E38))","v":"DS"},null,null,{"$f":"TEXT('Allm. Data'!C39,\"##\") & \" - \" &  TEXT('Allm. Data'!D39,\"##\") & \" %\"","v":"2 - 30 %"},"P11"]
[null,"Övrig plast","Övrig plast utom avfallsbärare",null,"DS"]
[null,null,"Avfallsbärare",null,"DS",null,null,null,"P14a"]
[null,null,"Summa övrig plast",{"$f":"SUM(D40:D41)","v":0},{"$f":"IF(SUM(E40:E41)=0,\"DS\",SUM(E40:E41))","v":"DS"},null,null,{"$f":"TEXT('Allm. Data'!C42,\"##\") & \" - \" &  TEXT('Allm. Data'!D42,\"##\") & \" %\"","v":"10 - 60 %"},"P14"]
["Glas","Glasförpackningar","Glasförpackningar med pant",null,"DS",null,null,null,"P66a"]
[null,null,"Glasförpackningar utan pant",null,"DS",null,null,null,"P66b"]
[null,null,"Glasförpackningar, ej dryck",null,"DS"]
[null,null,"Summa glasförpackningar",{"$f":"SUM(D43:D45)","v":0},{"$f":"IF(SUM(E43:E45)=0,\"DS\",SUM(E43:E45))","v":"DS"},null,null,{"$f":"TEXT('Allm. Data'!C40,\"0###,#\") & \" - \" &  TEXT('Allm. Data'!D40,\"##\") & \" %\"","v":"0,5 - 10 %"},"P12"]
[null,null,"Övrigt glas",null,"DS",null,null,{"$f":"TEXT('Allm. Data'!C44,\"0####\") & \" - \" &  TEXT('Allm. Data'!D44,\"##\") & \" %\"","v":"0 - 30 %"},"P16"]
["Metall","Metallförpackningar","Metallförpackningar med pant",null,"DS",null,null,null,"P67a"]
[null,null,"Metallförpackningar utan pant",null,"DS",null,null,null,"P67b"]
[null,null,"Metallförpackningar, ej dryck",null,"DS"]
[null,null,"Summa metallförpackningarl",{"$f":"SUM(D48:D50)","v":0},{"$f":"IF(SUM(E48:E50)=0,\"DS\",SUM(E48:E50))","v":"DS"},null,null,{"$f":"TEXT('Allm. Data'!C41,\"0,0\") & \" - \" &  TEXT('Allm. Data'!D41,\"##\") & \" %\"","v":"0,5 - 10 %"},"P13"]
[null,null,"Övrig metall",null,"DS",null,null,{"$f":"TEXT('Allm. Data'!C44,\"0####\") & \" - \" &  TEXT('Allm. Data'!D44,\"##\") & \" %\"","v":"0 - 30 %"},"P16"]
["Övrigt oorganiskt","Övrigt oorganiskt","Övrigt oorganiskt",null,"DS",null,null,{"$f":"TEXT('Allm. Data'!C44,\"0####\") & \" - \" &  TEXT('Allm. Data'!D44,\"##\") & \" %\"","v":"0 - 30 %"},"P16"]
["Farligt avfall","Farligt avfall","Kanyler",null,"DS",null,null,null,"P68"]
["(exkl. elavfall)",null,"Läkemedel",null,"DS"]
[null,null,"Övrigt farligt avfall",null,"DS"]
[null,null,"Summa farligt avfall",{"$f":"SUM(D54:D56)","v":0},{"$f":"IF(SUM(E54:E56)=0,\"DS\",SUM(E54:E56))","v":"DS"},null,null,{"$f":"TEXT('Allm. Data'!C45,\"0####\") & \" - \" &  TEXT('Allm. Data'!D45,\"##\") & \" %\"","v":"0 - 5 %"},"P17"]
["Elavfall*",null,"Lampor",null,"DS",null,null,null,"P69"]
[null,null,"Smått elavfall",null,"DS"]
[null,null,"Batterier, inkl. inbyggda",null,"DS",null,null,{"$f":"TEXT('Allm. Data'!C46,\"0####\") & \" - \" &  TEXT('Allm. Data'!D46,\"##\") & \" %\"","v":"0 - 5 %"},"P18 + P70"]
[null,null,"Summa elavfall",{"$f":"SUM(D58:D60)","v":0},{"$f":"IF(SUM(E58:E60)=0,\"DS\",SUM(E58:E60))","v":"DS"},null,null,{"$f":"TEXT('Allm. Data'!C47,\"0####\") & \" - \" &  TEXT('Allm. Data'!D47,\"##\") & \" %\"","v":"0 - 5 %"},"P19"]
["Textil",null,"Återvinningsbar textil",null,"DS"]
[null,null,"Återanvändningsbar textil",null,"DS"]
[null,null,"Summa textil",{"$f":"SUM(D62:D63)","v":0},{"$f":"IF(SUM(E62:E63)=0,\"DS\",SUM(E62:E63))","v":"DS"},null,null,{"$f":"TEXT('Allm. Data'!C43,\"0####\") & \" - \" &  TEXT('Allm. Data'!D43,\"##\") & \" %\"","v":"0 - 10 %"},"P15"]
["Övrigt",null,"Trä",null,"DS"]
[null,null,"Blöjor, bindor o dyl",null,"DS"]
[null,null,"Allt annat ",null,"DS"]
[null,null,"Summa övrigt",{"$f":"SUM(D65:D67)","v":0},{"$f":"IF(SUM(E65:E67)=0,\"DS\",SUM(E65:E67))","v":"DS"},null,null,{"$f":"TEXT('Allm. Data'!C42,\"##\") & \" - \" &  TEXT('Allm. Data'!D42,\"##\") & \" %\"","v":"10 - 60 %"},"P14"]
["Totalt",null,null,{"$f":"SUM(D21, D24, D28, D31,D35,D39,D42,D46+D47+D51+D52,D53,D57,D61,D64,D68)","v":0},{"$f":"SUM(E21,E24,E28,E31,E35,E39,E42,E46,E47,E51,E52,E53,E57,E61,E64,E68)","v":0}]

{"sheet":"Restavfall-Lgh","index":4,"n_rows":69,"n_cols":9,"rows_kept":69,"cut":false,"hidden":false,"merged":[[0,0,0,8],[6,0,6,1],[7,0,7,1],[7,2,7,7],[6,2,6,7],[5,0,5,7],[4,0,4,1],[2,0,2,1],[3,0,3,1],[2,2,2,7],[3,2,3,7],[4,2,4,7],[11,0,11,1],[13,0,13,6],[13,7,14,7],[13,8,14,8],[8,0,8,1],[9,0,9,1],[10,0,10,1],[10,3,10,7],[9,3,9,7],[8,3,8,7]]}
["Plockanalys av restavfall - Flerfamiljshus (lägenhet)"]
[]
["Datum för provinsamling "]
["Datum för sortering "]
["Moderprovets namn"]
[null,null,null,null,null,null,null,null,"Avfall web kod"]
["Typ av insamlingssystem",null,null,null,null,null,null,null,"P20"]
["Annat insamlingssystem",null,null,null,null,null,null,null,"P62"]
["Andel hushåll med fastighetsnära insamling av förpackningar och returpapper, %",null,null,null,null,null,null,null,"P21"]
["Andel hushåll med hemkompost, %",null,null,null,null,null,null,null,"P22"]
["Mängd restavfall till, kg per hushåll och vecka",null,null,{"$f":"TEXT('Allm. Data'!C58,\"##\") & \" - \" &  TEXT('Allm. Data'!D58,\"##\") & \" kg är ett rimligt värde\"","v":"2 - 10 kg är ett rimligt värde"},null,null,null,null,"P55"]
["Mängd restavfall som sorterats, kg ",null,{"$f":"D69","v":0}]
[]
["Resultat från plockanalys",null,null,null,null,null,null,"Rimligt värde %","Avfall web kod"]
["Primär fraktion ","Sekundär fraktion","Tertiär fraktion (urval)","Vikt, kg","Vikt, %","Antal, st","Varav, %"]
["Bioavfall","Matavfall","Onödigt matavfall",null,{"$f":"IF(D16=\"\",\"DS\", D16/$D$69*100)","v":"DS"},null,{"$f":"IFERROR((E16/SUM(E16:E18))*100, \"DS\")","v":"DS"},{"$f":"TEXT('Allm. Data'!C60,\"##\") & \" - \" &  TEXT('Allm. Data'!D60,\"##\") & \" %\"","v":"1 - 30 %"},"P56"]
[null,null,"Oundvikligt matavfall",null,{"$f":"IF(D17=\"\",\"DS\", D17/$D$69*100)","v":"DS"}]
[null,null,"Övrigt matavfall, exkl hushållspapper och servetter",null,"DS"]
[null,null,"Summa matavfall",{"$f":"SUM(D16:D18)","v":0},{"$f":"IF(SUM(E16:E18)=0,\"DS\",SUM(E16:E18))","v":"DS"},null,null,{"$f":"TEXT('Allm. Data'!C59,\"00\") & \" - \" &  TEXT('Allm. Data'!D59,\"00\") & \" %\"","v":"10 - 50 %"},"P41"]
[null,"Trädgårdsavfall",null,null,"DS",null,null,{"$f":"TEXT('Allm. Data'!C61,\"##\") & \" - \" &  TEXT('Allm. Data'!D61,\"##\") & \" %\"","v":"1 - 20 %"},"P23"]
[null,null,"Summa bioavfall",{"$f":"SUM(D19:D20)","v":0},{"$f":"IF(SUM(E19:E20)=0,\"DS\",SUM(E19:E20))","v":"DS"}]
["Papper","Returpapper*","Dags- och veckotidningar",null,"DS",null,{"$f":"IFERROR((E22/E$24)*100, \"DS\")","v":"DS"},null,"P24a"]
[null,null,"Reklamblad, produktkataloger m.m.",null,"DS",null,{"$f":"IFERROR((E23/E$24)*100, \"DS\")","v":"DS"},null,"P24b"]
[null,null,"Summa returpapper",{"$f":"SUM(D22:D23)","v":0},{"$f":"IF(SUM(E22:E23)=0,\"DS\",SUM(E22:E23))","v":"DS"},null,null,{"$f":"TEXT('Allm. Data'!C62,\"##\") & \" - \" &  TEXT('Allm. Data'!D62,\"##\") & \" %\"","v":"1 - 30 %"},"P24"]
[null,"Förpackningar","Well*",null,"DS"]
[null,null,"Pappersförp. utom avfallsbärare2",null,"DS"]
[null,null,"Avfallsbärare2",null,"DS",null,null,null,"P25a"]
[null,null,"Summa pappersförpackningar",{"$f":"SUM(D25:D27)","v":0},{"$f":"IF(SUM(E25:E27)=0,\"DS\",SUM(E25:E27))","v":"DS"},null,null,{"$f":"TEXT('Allm. Data'!C63,\"##\") & \" - \" &  TEXT('Allm. Data'!D63,\"##\") & \" %\"","v":"2 - 30 %"},"P25"]
[null,"Övrigt papper ","Övrigt papper utom avfallsbärare",null,"DS"]
[null,null,"Avfallsbärare",null,"DS",null,null,null,"P29a"]
[null,null,"Summa övrigt papper",{"$f":"SUM(D29:D30)","v":0},{"$f":"IF(SUM(E29:E30)=0,\"DS\",SUM(E29:E30))","v":"DS"},null,null,{"$f":"TEXT('Allm. Data'!C67,\"##\") & \" - \" &  TEXT('Allm. Data'!D67,\"##\") & \" %\"","v":"10 - 60 %"},"P29"]
["Plast","Mjukplastförpackningar","Mjukplastförp. utom avfallsbärare",null,"DS"]
[null,null,"Avfallsbärare",null,"DS",null,null,null,"P26a"]
[null,"Frigolit","Frigolit",null,"DS"]
[null,null,"Summa mjuka plastförpackningar",{"$f":"SUM(D32:D34)","v":0},{"$f":"IF(SUM(E32:E34)=0,\"DS\",SUM(E32:E34))","v":"DS"},null,null,{"$f":"TEXT('Allm. Data'!C64,\"##\") & \" - \" &  TEXT('Allm. Data'!D64,\"##\") & \" %\"","v":"2 - 30 %"},"P26"]
[null,"Hårdplastförpackningar*","Hårdplastförpackningar med pant",null,"DS",null,null,null,"P71a"]
[null,null,"Hårdplastförpackningar utan pant",null,"DS",null,null,null,"P71b"]
[null,null,"Hårdplastförpackningar, ej dryck",null,"DS"]
[null,null,"Summa hårda plastförpackningar",{"$f":"SUM(D36:D38)","v":0},{"$f":"IF(SUM(E36:E38)=0,\"DS\",SUM(E36:E38))","v":"DS"},null,null,{"$f":"TEXT('Allm. Data'!C64,\"##\") & \" - \" &  TEXT('Allm. Data'!D64,\"##\") & \" %\"","v":"2 - 30 %"},"P26"]
[null,"Övrig plast","Övrig plast utom avfallsbärare",null,"DS"]
[null,null,"Avfallsbärare",null,"DS",null,null,null,"P29a"]
[null,null,"Summa övrig plast",{"$f":"SUM(D40:D41)","v":0},{"$f":"IF(SUM(E40:E41)=0,\"DS\",SUM(E40:E41))","v":"DS"},null,null,{"$f":"TEXT('Allm. Data'!C67,\"##\") & \" - \" &  TEXT('Allm. Data'!D67,\"##\") & \" %\"","v":"10 - 60 %"},"P29"]
["Glas","Glasförpackningar","Glasförpackningar med pant",null,"DS",null,null,null,"P72a"]
[null,null,"Glasförpackningar utan pant",null,"DS",null,null,null,"P72b"]
[null,null,"Glasförpackningar, ej dryck",null,"DS"]
[null,null,"Summa glasförpackningar",{"$f":"SUM(D43:D45)","v":0},{"$f":"IF(SUM(E43:E45)=0,\"DS\",SUM(E43:E45))","v":"DS"},null,null,{"$f":"TEXT('Allm. Data'!C65,\"0###,#\") & \" - \" &  TEXT('Allm. Data'!D65,\"##\") & \" %\"","v":"0,5 - 10 %"},"P27"]
[null,null,"Övrigt glas",null,"DS",null,null,{"$f":"TEXT('Allm. Data'!C69,\"0####\") & \" - \" &  TEXT('Allm. Data'!D69,\"##\") & \" %\"","v":"0 - 30 %"},"P31"]
["Metall","Metallförpackningar","Metallförpackningar med pant",null,"DS",null,null,null,"P73a"]
[null,null,"Metallförpackningar utan pant",null,"DS",null,null,null,"P73b"]
[null,null,"Metallförpackningar, ej dryck",null,"DS"]
[null,null,"Summa metallförpackningarl",{"$f":"SUM(D48:D50)","v":0},{"$f":"IF(SUM(E48:E50)=0,\"DS\",SUM(E48:E50))","v":"DS"},null,null,{"$f":"TEXT('Allm. Data'!C66,\"0,0\") & \" - \" &  TEXT('Allm. Data'!D66,\"##\") & \" %\"","v":"0,5 - 10 %"},"P28"]
[null,null,"Övrig metall",null,"DS",null,null,{"$f":"TEXT('Allm. Data'!C69,\"0####\") & \" - \" &  TEXT('Allm. Data'!D69,\"##\") & \" %\"","v":"0 - 30 %"},"P31"]
["Övrigt oorganiskt","Övrigt oorganiskt","Övrigt oorganiskt",null,"DS",null,null,{"$f":"TEXT('Allm. Data'!C69,\"0####\") & \" - \" &  TEXT('Allm. Data'!D69,\"##\") & \" %\"","v":"0 - 30 %"},"P31"]
["Farligt avfall","Farligt avfall","Kanyler",null,"DS",null,null,null,"P74"]
["(exkl. elavfall)",null,"Läkemedel",null,"DS"]
[null,null,"Övrigt farligt avfall",null,"DS"]
[null,null,"Summa farligt avfall",{"$f":"SUM(D54:D56)","v":0},{"$f":"IF(SUM(E54:E56)=0,\"DS\",SUM(E54:E56))","v":"DS"},null,null,{"$f":"TEXT('Allm. Data'!C70,\"0####\") & \" - \" &  TEXT('Allm. Data'!D70,\"##\") & \" %\"","v":"0 - 5 %"},"P32"]
["Elavfall*",null,"Lampor",null,"DS",null,null,null,"P75"]
[null,null,"Smått elavfall",null,"DS"]
[null,null,"Batterier, inkl. inbyggda",null,"DS",null,null,{"$f":"TEXT('Allm. Data'!C71,\"0####\") & \" - \" &  TEXT('Allm. Data'!D71,\"##\") & \" %\"","v":"0 - 5 %"},"P33 + P76"]
[null,null,"Summa elavfall",{"$f":"SUM(D58:D60)","v":0},{"$f":"IF(SUM(E58:E60)=0,\"DS\",SUM(E58:E60))","v":"DS"},null,null,{"$f":"TEXT('Allm. Data'!C72,\"0####\") & \" - \" &  TEXT('Allm. Data'!D72,\"##\") & \" %\"","v":"0 - 5 %"},"P34"]
["Textil",null,"Återvinningsbar textil",null,"DS"]
[null,null,"Återanvändningsbar textil",null,"DS"]
[null,null,"Summa textil",{"$f":"SUM(D62:D63)","v":0},{"$f":"IF(SUM(E62:E63)=0,\"DS\",SUM(E62:E63))","v":"DS"},null,null,{"$f":"TEXT('Allm. Data'!C68,\"0####\") & \" - \" &  TEXT('Allm. Data'!D68,\"##\") & \" %\"","v":"0 - 10 %"},"P30"]
["Övrigt",null,"Trä",null,"DS"]
[null,null,"Blöjor, bindor o dyl",null,"DS"]
[null,null,"Allt annat ",null,"DS"]
[null,null,"Summa övrigt",{"$f":"SUM(D65:D67)","v":0},{"$f":"IF(SUM(E65:E67)=0,\"DS\",SUM(E65:E67))","v":"DS"},null,null,{"$f":"TEXT('Allm. Data'!C67,\"##\") & \" - \" &  TEXT('Allm. Data'!D67,\"##\") & \" %\"","v":"10 - 60 %"},"P29"]
["Totalt",null,null,{"$f":"SUM(D21, D24, D28, D31,D35,D39,D42,D46,D47,D51,D52,D53,D57,D61,D64,D68)","v":0},{"$f":"SUM(E21,E24,E28,E31,E35,E39,E42,E46,E47,E51,E52,E53,E57,E61,E64,E68)","v":0}]

{"sheet":"Matavfall-Villa","index":5,"n_rows":48,"n_cols":7,"rows_kept":48,"cut":false,"hidden":false,"merged":[[3,2,3,6],[2,2,2,6],[0,0,0,6],[27,0,29,0],[11,0,11,4],[1,0,1,4],[2,0,2,1],[3,0,3,1],[9,3,9,5],[8,3,8,5],[11,6,12,6],[4,0,4,1],[6,0,6,1],[7,0,7,1],[8,0,8,1],[9,0,9,1],[45,0,45,1],[13,0,18,0],[19,0,22,0],[23,0,26,0],[30,0,32,0],[34,0,37,0],[4,2,4,6],[11,5,12,5],[10,0,10,4],[7,2,7,5],[6,2,6,5],[5,0,5,5]]}
["Plockanalys av matavfall - Villahushåll"]
[]
["Datum för provinsamling "]
["Datum för sortering "]
["Moderprovets namn"]
[null,null,null,null,null,null,"Avfall web kod"]
["Typ av insamlingssystem",null,null,null,null,null,"P35"]
["Annat insamlingssystem",null,null,null,null,null,"P63"]
["Andel hushåll med fastighetsnära insamling av förpackningar och returpapper, %",null,null,null,null,null,"P36"]
["Mängd matavfall till biologisk behandling, kg per hushåll och vecka",null,null,{"$f":"TEXT('Allm. Data'!C51,\"##\") & \" - \" &  TEXT('Allm. Data'!D51,\"##\") & \" kg är ett rimligt värde\"","v":"1 - 5 kg är ett rimligt värde"},null,null,"P57"]
[]
["Resultat från plockanalys",null,null,null,null,"Rimligt värde","Avfall web kod"]
["Primär fraktion ","Sekundär fraktion","Vikt, kg","Vikt%","Varav, %"]
["Bioavfall","Onödigt matavfall",null,{"$f":"IF(C14=\"\",\"DS\", C14/$C$44*100)","v":"DS"},{"$f":"IFERROR((D14/SUM(D14:D16))*100, \"DS\")","v":"DS"},{"$f":"TEXT('Allm. Data'!C52,\"##\") & \" - \" &  TEXT('Allm. Data'!D52,\"##\") & \" %\"","v":"10 - 30 %"},"P58"]
[null,"Oundvikligt matavfall",null,{"$f":"IF(C15=\"\",\"DS\", C15/$C$44*100)","v":"DS"}]
[null,"Övrigt matavfall, inkl hushållspapper och servetter",null,"DS"]
[null,"Avfallsbärare",null,"DS",null,null,"P58a"]
[null,"Trädgårdsavfall",null,"DS"]
[null,"Summa bioavfall",{"$f":"SUM(C14:C18)","v":0},{"$f":"SUM(D14:D18)","v":0}]
["Papper","Returpapper",null,{"$f":"IF(C20=\"\",\"DS\", C20/$C$44*100)","v":"DS"}]
[null,"Pappersförpackningar",null,"DS"]
[null,"Övrigt papper ",null,"DS"]
[null,"Summa papper",{"$f":"SUM(C20:C22)","v":0},{"$f":"SUM(D20:D22)","v":0}]
["Plast","Mjukplastförpackningar",null,{"$f":"IF(C24=\"\",\"DS\", C24/$C$44*100)","v":"DS"}]
[null,"Hårdplastförpackningar",null,"DS"]
[null,"Övrig plast",null,"DS"]
[null,"Summa plast",{"$f":"SUM(C24:C26)","v":0},{"$f":"SUM(D24:D26)","v":0}]
["Glas","Glasförpackningar",null,{"$f":"IF(C28=\"\",\"DS\", C28/$C$44*100)","v":"DS"}]
[null,"Övrigt glas",null,"DS"]
[null,"Summa glas",{"$f":"SUM(C28:C29)","v":0},{"$f":"SUM(D28:D29)","v":0}]
["Metall","Metallförpackningar",null,{"$f":"IF(C31=\"\",\"DS\", C31/$C$44*100)","v":"DS"}]
[null,"Övrig metall",null,"DS"]
[null,"Summa metall",{"$f":"SUM(C31:C32)","v":0},{"$f":"SUM(D31:D32)","v":0}]
["Övrigt oorganiskt",null,null,{"$f":"IF(C34=\"\",\"DS\", C34/$C$44*100)","v":"DS"}]
["Farligt avfall","Kanyler",null,{"$f":"IF(C35=\"\",\"DS\", C35/$C$44*100)","v":"DS"}]
["(exkl. elavfall)","Läkemedel",null,"DS"]
[null,"Övrigt farligt avfall",null,"DS"]
[null,"Summa farligt avfall",{"$f":"SUM(C35:C37)","v":0},{"$f":"SUM(D35:D37)","v":0}]
["Elavfall*","Lampor",null,{"$f":"IF(C39=\"\",\"DS\", C39/$C$44*100)","v":"DS"}]
[null,"Batterier, inkl. inbyggda",null,"DS"]
[null,"Smått elavfall",null,"DS"]
[null,"Summa elavfall",{"$f":"SUM(C39:C41)","v":0},{"$f":"SUM(D39:D41)","v":0}]
["Övrigt","Allt annat",null,{"$f":"IF(C43=\"\",\"DS\", C43/$C$44*100)","v":"DS"}]
["Totalt",null,{"$f":"SUM(C19,C23,C27,C30,C33,C34,C38,C42,C43)","v":0},{"$f":"SUM(D19,D23,D27,D30,D33,D34,D38,D42,D43)","v":0}]
[]
["Andel felsorterat avfall i matavfall ",null,null,{"$f":"D44-SUM(D14:D17)","v":0},null,{"$f":"TEXT('Allm. Data'!C53,\"0##\") & \" - \" &  TEXT('Allm. Data'!D53,\"##\")& \" %\"","v":"0 - 20 %"},"P37"]
["Andel farligt avfall och elavfall",null,null,null,{"$f":"((D38+D42))","v":0},{"$f":"TEXT('Allm. Data'!C54,\"0##\") & \" - \" &  TEXT('Allm. Data'!D54,\"0##,#\")& \" %\"","v":"0 - 0,5 %"},"P49"]
["Andel övrigt felsorterat",null,null,null,{"$f":"D46-E47","v":0},{"$f":"TEXT('Allm. Data'!C55,\"0##\") & \" - \" &  TEXT('Allm. Data'!D55,\"##\")& \" %\"","v":"0 - 20 %"},"P50"]

{"sheet":"Matavfall-Lgh","index":6,"n_rows":48,"n_cols":7,"rows_kept":48,"cut":false,"hidden":false,"merged":[[4,2,4,6],[3,2,3,6],[2,2,2,6],[0,0,0,6],[7,0,7,1],[1,0,1,4],[2,0,2,1],[3,0,3,1],[4,0,4,1],[6,0,6,1],[7,2,7,5],[6,2,6,5],[5,0,5,5],[8,0,8,1],[9,0,9,1],[10,0,10,4],[9,3,9,5],[8,3,8,5],[30,0,32,0],[34,0,37,0],[45,0,45,1],[11,5,12,5],[11,6,12,6],[13,0,18,0],[19,0,22,0],[23,0,26,0],[27,0,29,0],[11,0,11,4]]}
["Plockanalys av matavfall - Flerfamiljshus (lägenhet)"]
[]
["Datum för provinsamling "]
["Datum för sortering "]
["Moderprovets namn"]
[null,null,null,null,null,null,"Avfall web kod"]
["Typ av insamlingssystem",null,null,null,null,null,"P38"]
["Annat insamlingssystem",null,null,null,null,null,"P64"]
["Andel hushåll med fastighetsnära insamling av förpackningar och returpapper, %",null,null,null,null,null,"P39"]
["Mängd matavfall till biologisk behandling, kg per hushåll och vecka",null,null,{"$f":"TEXT('Allm. Data'!C76,\"##\") & \" - \" &  TEXT('Allm. Data'!D76,\"##\") & \" kg är ett rimligt värde\"","v":"1 - 5 kg är ett rimligt värde"},null,null,"P59"]
[]
["Resultat från plockanalys",null,null,null,null,"Rimligt värde","Avfall web kod"]
["Primär fraktion ","Sekundär fraktion","Vikt, kg","Vikt%","Varav, %"]
["Bioavfall","Onödigt matavfall",null,{"$f":"IF(C14=\"\",\"DS\", C14/$C$44*100)","v":"DS"},{"$f":"IFERROR((D14/SUM(D14:D16))*100, \"DS\")","v":"DS"},{"$f":"TEXT('Allm. Data'!C77,\"##\") & \" - \" &  TEXT('Allm. Data'!D77,\"##\") & \" %\"","v":"10 - 30 %"},"P60"]
[null,"Oundvikligt matavfall",null,{"$f":"IF(C15=\"\",\"DS\", C15/$C$44*100)","v":"DS"}]
[null,"Övrigt matavfall, inkl hushållspapper och servetter",null,"DS"]
[null,"Avfallsbärare",null,"DS",null,null,"P60a"]
[null,"Trädgårdsavfall",null,"DS"]
[null,"Summa bioavfall",{"$f":"SUM(C14:C18)","v":0},{"$f":"SUM(D14:D18)","v":0}]
["Papper","Returpapper",null,{"$f":"IF(C20=\"\",\"DS\", C20/$C$44*100)","v":"DS"}]
[null,"Pappersförpackningar",null,"DS"]
[null,"Övrigt papper ",null,"DS"]
[null,"Summa papper",{"$f":"SUM(C20:C22)","v":0},{"$f":"SUM(D20:D22)","v":0}]
["Plast","Mjukplastförpackningar",null,{"$f":"IF(C24=\"\",\"DS\", C24/$C$44*100)","v":"DS"}]
[null,"Hårdplastförpackningar",null,"DS"]
[null,"Övrig plast",null,"DS"]
[null,"Summa plast",{"$f":"SUM(C24:C26)","v":0},{"$f":"SUM(D24:D26)","v":0}]
["Glas","Glasförpackningar",null,{"$f":"IF(C28=\"\",\"DS\", C28/$C$44*100)","v":"DS"}]
[null,"Övrigt glas",null,"DS"]
[null,"Summa glas",{"$f":"SUM(C28:C29)","v":0},{"$f":"SUM(D28:D29)","v":0}]
["Metall","Metallförpackningar",null,{"$f":"IF(C31=\"\",\"DS\", C31/$C$44*100)","v":"DS"}]
[null,"Övrig metall",null,"DS"]
[null,"Summa metall",{"$f":"SUM(C31:C32)","v":0},{"$f":"SUM(D31:D32)","v":0}]
["Övrigt oorganiskt",null,null,{"$f":"IF(C34=\"\",\"DS\", C34/$C$44*100)","v":"DS"}]
["Farligt avfall","Kanyler",null,{"$f":"IF(C35=\"\",\"DS\", C35/$C$44*100)","v":"DS"}]
["(exkl. elavfall)","Läkemedel",null,"DS"]
[null,"Övrigt farligt avfall",null,"DS"]
[null,"Summa farligt avfall",{"$f":"SUM(C35:C37)","v":0},{"$f":"SUM(D35:D37)","v":0}]
["Elavfall*","Lampor",null,{"$f":"IF(C39=\"\",\"DS\", C39/$C$44*100)","v":"DS"}]
[null,"Batterier, inkl. inbyggda",null,"DS"]
[null,"Smått elavfall",null,"DS"]
[null,"Summa elavfall",{"$f":"SUM(C39:C41)","v":0},{"$f":"SUM(D39:D41)","v":0}]
["Övrigt","Allt annat",null,{"$f":"IF(C43=\"\",\"DS\", C43/$C$44*100)","v":"DS"}]
["Totalt",null,{"$f":"SUM(C19,C23,C27,C30,C33,C34,C38,C42,C43)","v":0},{"$f":"SUM(D19,D23,D27,D30,D33,D34,D38,D42,D43)","v":0}]
[]
["Andel felsorterat avfall i matavfall ",null,null,{"$f":"D44-SUM(D14:D17)","v":0},null,{"$f":"TEXT('Allm. Data'!C78,\"0,0\") & \" - \" &  TEXT('Allm. Data'!D78,\"0,0\")& \" %\"","v":"0,0 - 20,0 %"},"P40"]
["Andel farligt avfall och elavfall",null,null,null,{"$f":"((D38+D42))","v":0},{"$f":"TEXT('Allm. Data'!C79,\"0,0\") & \" - \" &  TEXT('Allm. Data'!D79,\"0##,#\")& \" %\"","v":"0,0 - 0,5 %"},"P51"]
["Andel övrigt felsorterat",null,null,null,{"$f":"D46-E47","v":0},{"$f":"TEXT('Allm. Data'!C80,\"0,0\") & \" - \" &  TEXT('Allm. Data'!D80,\"##\")& \" %\"","v":"0,0 - 20 %"},"P52"]

{"sheet":"Grovavfall","index":7,"n_rows":21,"n_cols":4,"rows_kept":21,"cut":false,"hidden":false,"merged":[[0,0,0,3],[1,0,1,2],[8,0,8,2],[6,1,6,2],[2,1,2,3],[3,1,3,3],[4,1,4,3]]}
["Plockanalys av Grovavfall"]
[]
["Datum för provinsamling "]
["Datum för sortering "]
["Moderprovets namn"]
[null,null,null,"Avfall web kod"]
["Information om plockanalysen",null,null,"P93"]
["Mängd grovavfall",{"$f":"IF(B11=\"\",\"DS\", $B$21)","v":"DS"},null,"P94"]
["Resultat från plockanalys"]
["Fraktion","Vikt, kg","Vikt%","Avfall web kod"]
["Träavfall, andel",null,{"$f":"IF(B11=\"\",\"DS\", B11/$B$21*100)","v":"DS"},"P95"]
["Trädgårdsavfall, andel",null,{"$f":"IF(B12=\"\",\"DS\", B12/$B$21*100)","v":"DS"},"P96"]
["Papper och kartong, andel",null,"DS","P97"]
["Förpackningar och returpapper, andel",null,"DS","P98"]
["Kommunplast (ej förpackningar), andel",null,"DS","P99"]
["Metall, andel",null,"DS","P100"]
["Inert avfall, andel",null,"DS","P101"]
["Farligt avfall, inkl elavfall, andel",null,"DS","P102"]
["Textilier, andel",null,"DS","P103"]
["Övrigt avfall, andel",null,"DS","P104"]
["Summa",{"$f":"SUM(B11:B20)","v":0},{"$f":"SUM(C11:C20)","v":0}]

{"sheet":"Avfall Web","index":8,"n_rows":128,"n_cols":7,"rows_kept":128,"cut":false,"hidden":false,"merged":[[0,0,0,5]]}
["Plockanalys - Data till Avfall Web"]
[null,"Kommun",{"$f":"Övergripande!B3","v":0},"Måste vara ifylld, länkas från fliken Övergripande"]
[null,"År",{"$f":"Övergripande!B4","v":0},"Måste vara ifylld, länkas från fliken Övergripande"]
[null,"Rapportdatum",{"$f":"TODAY()","v":"2023-03-17"}]
[null,"Rapport, klockslag",{"$f":"NOW()","v":45002.433840162033}]
[]
["ID","Namn","Beskrivning","Enhet","Value","Intervall","Parameter ID"]
[null,"Uförare av plockanalys"]
["P77","Utförare av plockanalys","Ett alternativ: Egen regi, Upphandlad utförare av sorteringen; Upphandlad utförare hela projektet, Annat alternativ",null,{"$f":"IF(Övergripande!B12=\"\",\"DS\",Övergripande!B12)","v":"DS"},null,"817"]
["P88","Utförare av plockanalys, beskrivninng","Ange namn på upphandlad utförare och beskriv uppdraget. ",null,{"$f":"IF(Övergripande!B13=\"\",\"DS\",Övergripande!B13)","v":"DS"},null,"818"]
[null,"Information om plockanalysen/-erna"]
["P47","Information om plockanalysen/-erna","Fritextfält: Beskriv relevanta uppgifter om plockanalysen/erna, t.ex. syfte, bebyggelsetyp, social struktur, förekomst av matavfallsinsamling, förekomst av fastighetsnära insamling av förpackningar och returpapper,  typ av insamlingssystem, förekomst av verksamheter. De data som registreras ska ha tagits fram genom plockanalys där Avfall Sveriges manual i allt väsentligt har följts. Om några mindre väsentliga metodavvikelser gjorts, notera dessa. ",null,{"$f":"IF(Övergripande!B16=\"\",\"DS\",Övergripande!B16)","v":"DS"},null,"570"]
[null,"Källsorteringgrad matavfall och matsvinn"]
["P89","Källsorteringsgrad matavfall, villa","Andelen utsorterat  matavfall av den totala mängden matavfall (i matavfall- respektive restavfalls-fraktionen) i villa","%",{"$f":"IF(Övergripande!B19=\"\", \"DS\",TEXT(Övergripande!B19, \"0,0\"))","v":"DS"},null,"819"]
["P90","Källsorteringsgrad matavfall, lägenhet","Andelen utsorterat  matavfall av den totala mängden matavfall (i matavfall- respektive restavfalls-fraktionen) i lägenhet","%",{"$f":"IF(Övergripande!B20=\"\", \"DS\",TEXT(Övergripande!B20, \"0,0\"))","v":"DS"},null,"820"]
["P91","Matsvinn, villa","Andelen matsvinn, dvs. onödigt matavfall, i både matavfall och restavfall av totala andelen matavfall i villa. Kommuner med separat insamling av matavfall måste ha gjort plockanalys av både restavfall och matavfall för att få ange värde. ","%",{"$f":"IF(Övergripande!B21=\"\", \"DS\",TEXT(Övergripande!B21, \"0,0\"))","v":"DS"},null,"821"]
["P92","Matsvinn, lägenhet","Andelen matsvinn, dvs. onödigt matavfall, i både matavfall och restavfall av totala andelen matavfall i lägenhet. Kommuner med separat insamling av matavfall måste ha gjort plockanalys av både restavfall och matavfall för att få ange värde. ","%",{"$f":"IF(Övergripande!B22=\"\", \"DS\",TEXT(Övergripande!B22, \"0,0\"))","v":"DS"},null,"822"]
[null,"Plockanalys restavfall villa"]
[null,"Om kommunen gjort plockanalys i flera områden med villa (en- och tvåfamiljshus) ange värden som bedöms vara representativa eller ange viktat medelvärde. Avfall från verksamhet får inte ha ingått moderprovet. De värden som anges ska inte vara fuktkorrigerade. "]
["P4","Typ av insamlingssystem i delområdet (villa)","Förval: \nMatavfall i papperspåse i separat en- eller tvåfackskärl\nMatavfall i bioplastpåse i separat en- eller tvåfackskärl                                   Matavfall i plastpåse i separat en- eller tvåfackskärl\nMatavfall i papperspåse i fyrfackskärl\nMatavfall i bioplastpåse i fyrfackskärl \nMatavfall i plastpåse i fyrfackskärl\nOptisk sortering - separat påse enbart för matavfall\nOptisk sortering - separata påsar för matavfall/förpackningar/returpapper           Blandat restavfall (dvs ej utsortering av matavfall)\nAnnat system",null,{"$f":"IF('Restavfall-Villa'!C7=\"\",\"DS\",'Restavfall-Villa'!C7)","v":"DS"},null,"442"]
["P61","Om annat system valts, beskriv systemet","En fritextruta som kan användas för beskrivning om Annat system valts. Om inget annat system används ange ET (för att kunna för 100 % i status på förstasidan).",null,{"$f":"IF(E20='Allm. Data'!A20,'Restavfall-Villa'!C8,\"ET\")","v":"ET"},null,"NY "]
["P5","Andel hushåll med FNI (villa)","Andelen av de hushåll vars avfall analyserats vid plockanalysen som har fastighetsnära insamling av förpackningar och returpapper ","%",{"$f":"IF('Restavfall-Villa'!C9=\"\",\"DS\",TEXT('Restavfall-Villa'!C9, \"0,0\"))","v":"DS"},null,"443"]
["P6","Andel hushåll med hemkompost (villa)","Andelen av de hushåll vars avfall analyserats vid plockanalysen som hemkomposterar sitt matavfall","%",{"$f":"IF('Restavfall-Villa'!C10=\"\",\"DS\",TEXT('Restavfall-Villa'!C10, \"0,0\"))","v":"DS"},null,"444"]
["P53","Mängd restavfall (villa)","Total mängd restavfall till energiåtervinning (förbränning) uttryckt som kg per hushåll och vecka. Rimligt värde är 2-10 kg per hushåll och vecka. Värden utanför detta intervall rosamarkeras. OBS! Värdet avser mängd i genomförd plockanalysundersökning, inte genomsnittet i kommunen. ET får INTE användas. Om uppgifter ej finns ange DS eller lämna tomt.  ","kg/hushåll och vecka",{"$f":"IF('Restavfall-Villa'!C11=\"\",\"DS\",TEXT('Restavfall-Villa'!C11, \"0,00\"))","v":"DS"},"2-10","722"]
["P7","Andel matavfall (villa)","Andel matrester, kött- och fiskrester, frukt- och grönsaksskal, blast, kaffe- och tesump, kaffefilter, tepåse, äggskal, bröd, frukt, grönsaker, flytande matavfall. Rimligt värde är 20-60%. Värden utanför detta intervall rosamarkeras.","%",{"$f":"TEXT('Restavfall-Villa'!E19, \"0,0\")","v":"DS"},"20-60","445"]
["P54","   varav andel onödigt matavfall (villa)","Onödigt matavfall (matsvinn) utgörs av rester och rens från tillagade och råa livsmedel, brukar kallas matsvinn. (Oundvikligt matavfall utgörs av kärnor, skal och ben, d.v.s. delar av livsmedlet som normalt inte äts upp). Utgör andel av matavfall (P7). Rimligt värde är 1-30%. Värden utanför detta intervall rosamarkeras.","%",{"$f":"TEXT('Restavfall-Villa'!G16, \"0,0\")","v":"DS"},"1-30","723"]
["P8","Andel trädgårdsavfall (villa)","Andel frukt- och växtdelar från egen odling, snittblommor, krukväxter, grenar, kvistar och jord. Rimligt värde är 1-20%. Värden utanför detta intervall rosamarkeras.","%",{"$f":"TEXT('Restavfall-Villa'!E20, \"0,000\")","v":"DS"},"1-20","446"]
["P9","Andel returpapper (villa)","Andel trycksaker inkl. tidningar, broschyrer, kataloger, reklamblad, skrivpapper och kvitton, böcker med mjuk pärm, kollegieblock m.m. Rimligt värde är 1-30%. Värden utanför detta intervall rosamarkeras.","%",{"$f":"TEXT('Restavfall-Villa'!E24, \"0,000\")","v":"DS"},"1-30","447"]
["P9a","   varav  tidningar (villa)","Dags- och veckotidningar. Utgör andel av returpapper (P9)","%",{"$f":"TEXT('Restavfall-Villa'!G22, \"0,00\")","v":"DS"},null,"823"]
["P9b","   varav reklamblad (villa)","Reklamblad, produktkataloger m.m. Utgör andel av returpapper (P9)","%",{"$f":"TEXT('Restavfall-Villa'!G23, \"0,00\")","v":"DS"},null,"824"]
["P10","Andel pappersförpackningar, inkl avfallsbärare med producentansvar och wellpapp (villa)","Andel förpackningar av papper (minst 50 vikts-% papper) inklusive wellpapp. Rimligt värde är 2-30%. Värden utanför detta intervall rosamarkeras.","%",{"$f":"TEXT('Restavfall-Villa'!E28, \"0,00\")","v":"DS"},"2-30","448"]
["P10a","Andel avfallsbärare papper med producentansvar (villa)","Pappersbärkassar som säljs/tillhandahålls i handeln för att bära hem varor (utgör pappersförpackning under producentansvar) och som används som avfallsbärare. Andelen utgörs av andel totalt restavfall (P53) och inte andel av pappersförpackningar (P10). ","%",{"$f":"TEXT('Restavfall-Villa'!E27, \"0,000\")","v":"DS"},null,"825"]
["P11","Andel plastförpackningar, inkl avfallsbärare med producentansvar och frigolit (villa)","Andel förpackningar av hårdplast, mjukplast och frigolit (minst 50 vikts-% plast). Rimligt värde är 2-30%. Värden utanför detta intervall rosamarkeras.","%",{"$f":"IF(SUM('Restavfall-Villa'!E35,'Restavfall-Villa'!E39)=0,\"DS\",TEXT(SUM('Restavfall-Villa'!E35,'Restavfall-Villa'!E39), \"0,00\"))","v":"DS"},"2-30","449"]
["P11a","Andel avfallsbärare plast med producentansvar (villa)","Plastbärkassar som säljs/tillhandahålls i handeln för att bära hem varor (utgör plastförpackning under producentansvar) och som används som avfallsbärare. Andelen utgörs av andel totalt restavfall (P53) och inte andel av plastförpackningar (P11). ","%",{"$f":"TEXT('Restavfall-Villa'!E33, \"0,000\")","v":"DS"},null,"826"]
["P12","Andel glasförpackningar, färgade och ofärgade (villa)","Andel förpackningar av glas (minst 50 vikts-% glas). Rimligt värde är 0,5-10%. Värden utanför detta intervall rosamarkeras.","%",{"$f":"TEXT('Restavfall-Villa'!E46, \"0,00\")","v":"DS"},"0,5-10","450"]
["P13","Andel metallförpackningar (villa)","Andel förpackningar av metall (minst 50 vikts-% metall). Rimligt värde är 0,5-10%. Värden utanför detta intervall rosamarkeras.","%",{"$f":"TEXT('Restavfall-Villa'!E51, \"0,00\")","v":"DS"},"0,5-10","451"]
["P14","Andel övrigt brännbart (villa)","Andel övrigt papper, inkl. hushållspapper och servetter, övrig plast, trä, blöjor och dylikt. Textil inkluderas inte. Rimligt värde är 10-60%. Värden utanför detta intervall rosamarkeras. ","%",{"$f":"IF(SUM('Restavfall-Villa'!E31,'Restavfall-Villa'!E42,'Restavfall-Villa'!E68)=0,\"DS\",TEXT(SUM('Restavfall-Villa'!E31,'Restavfall-Villa'!E42,'Restavfall-Villa'!E68), \"0,0\"))","v":"DS"},"10-60","452"]
["P14a","Andel övriga avfallsbärare, ej förpackning med producentansvar (villa)","Påsar eller säckar som är avsedda för emballering av avfall, t.ex. sådana som tillhandahålls av kommunen för insamling av restavfall, förpackningar eller returpapper samt soppåsar på rulle som säljs i handeln (avser ej sopsäckar som säljs på rulle). Avser övriga avfallsbärare i både plast och papper som andel av totalen (P53).","%",{"$f":"IF(SUM('Restavfall-Villa'!E30,'Restavfall-Villa'!E41)=0,\"DS\",TEXT(SUM('Restavfall-Villa'!E30,'Restavfall-Villa'!E41), \"0,00\"))","v":"DS"},null,"827"]
["P15","Andel textilavfall (villa)","Andel textilavfall i förhållande till totala mängden restavfall (P53). Rimligt värde är 0-10%. Värden utanför detta intervall rosamarkeras.","%",{"$f":"TEXT('Restavfall-Villa'!E64, \"0,000\")","v":"DS"},"0-10","453"]
["P16","Andel övrigt icke brännbart (villa)","Andel övrigt glas, övrig metall, kattsand, porslin, keramik, aska, säkringar, stenar, tegel, glasull, mm. Rimligt värde är 0-30%. Värden utanför detta intervall rosamarkeras.","%",{"$f":"IF(SUM('Restavfall-Villa'!E47,'Restavfall-Villa'!E52,'Restavfall-Villa'!E53)=0,\"DS\",TEXT(SUM('Restavfall-Villa'!E47,'Restavfall-Villa'!E52,'Restavfall-Villa'!E53), \"0,00\"))","v":"DS"},"0-30","454"]
["P17","Andel farligt avfall, exkl batterier och elavfall (villa)","Andel farligt avfall, exklusive batterier och elavfall. Omfattar t.ex. kanyler, läkemedel, färg, lack, lim, lösningsmedel, bekämpningsmedel. Rimligt värde är 0-5%. Värden utanför detta intervall rosamarkeras.","%",{"$f":"TEXT('Restavfall-Villa'!E57, \"0,000\")","v":"DS"},"0-5","455"]
["P18","Andel batterier (villa)","Andel batterier. Rimligt värde är 0-5%. Värden utanför detta intervall rosamarkeras.","%",{"$f":"TEXT('Restavfall-Villa'!E60, \"0,000\")","v":"DS"},"0-5","456"]
["P19","Andel elavfall (villa)","Andel elavfall, exlusive batterier. Omfattar lysrör, lampor och smått elavfall. Rimligt värde är 0-5%. Värden utanför detta intervall rosamarkeras.","%",{"$f":"TEXT('Restavfall-Villa'!E61, \"0,000\")","v":"DS"},"0-5","457"]
["P65a","Dryckesförpackningar av plast med pant (villa) ","Avser  dryckesförpackningar med svensk pant, till exempel PET-flaskor. Avser inte diskmedelsförpackningar etc med pant. Antalet divideras med den sorterade vikten som därefter multipliceras med 1000 för att redovisning ska kunna ske som antal per ton (1000 kg) sorterat avfall. ","st / ton",{"$f":"IF('Restavfall-Villa'!F36=\"\",\"DS\",TEXT('Restavfall-Villa'!F36/'Restavfall-Villa'!C12*1000, \"0,00\"))","v":"DS"},null,"828"]
["P65b","Dryckesförpackningar av plast utan pant (villa)","Avser PET förpackningar utan pant för drycker, såsom juice och saft. Avser inte diskmedelsförpackningar etc. Antalet divideras med den sorterade vikten som därefter multipliceras med 1000 för att redovisning ska kunna ske som antal per ton (1000 kg) sorterat avfall. ","st / ton",{"$f":"IF('Restavfall-Villa'!F37=\"\",\"DS\",TEXT('Restavfall-Villa'!F37/'Restavfall-Villa'!C12*1000, \"0,00\"))","v":"DS"},null,"829"]
["P66a","Dryckesförpackningar av glas med pant (villa)","Avser dryckesförpackningar i glas med svensk pant. Antalet divideras med den sorterade vikten som därefter multipliceras med 1000 för att redovisning ska kunna ske som antal per ton (1000 kg) sorterat avfall. ","st / ton",{"$f":"IF('Restavfall-Villa'!F43=\"\",\"DS\",TEXT('Restavfall-Villa'!F43/'Restavfall-Villa'!C12*1000, \"0,00\"))","v":"DS"},null,"830"]
["P66b","Dryckesförpackningar av glas utan pant (villa)","Avser dryckesförpackningar i glas utan pant. Antalet divideras med den sorterade vikten som därefter multipliceras med 1000 för att redovisning ska kunna ske som antal per ton (1000 kg) sorterat avfall. ","st / ton",{"$f":"IF('Restavfall-Villa'!F44=\"\",\"DS\",TEXT('Restavfall-Villa'!F44/'Restavfall-Villa'!C12*1000, \"0,00\"))","v":"DS"},null,"831"]
["P67a","Dryckesförpackningar av metall med pant (villa)","Avser dryckesförpackningar i metall med  svensk pant. Antalet divideras med den sorterade vikten som därefter multipliceras med 1000 för att redovisning ska kunna ske som antal per ton (1000 kg) sorterat avfall. ","st / ton",{"$f":"IF('Restavfall-Villa'!F48=\"\",\"DS\",TEXT('Restavfall-Villa'!F48/'Restavfall-Villa'!C12*1000, \"0,00\"))","v":"DS"},null,"832"]
["P67b","Dryckesförpackningar av metall utan pant (villa)","Avser dryckesförpackningar i metall utan pant. Avser inte konservburkar. Antalet divideras med den sorterade vikten som därefter multipliceras med 1000 för att redovisning ska kunna ske som antal ton (1000 kg) sorterat avfall. ","st / ton",{"$f":"IF('Restavfall-Villa'!F49=\"\",\"DS\",TEXT('Restavfall-Villa'!F49/'Restavfall-Villa'!C12*1000, \"0,00\"))","v":"DS"},null,"833"]
["P68","Kanyler (villa)","Enheter av kanyler i inom fraktionen farligt avfall i restavfall för villa. Antalet divideras med den sorterade vikten som därefter multipliceras med 1000 för att redovisning ska kunna ske som antal per ton (1000 kg) sorterat avfall. ","st / ton",{"$f":"IF('Restavfall-Villa'!F54=\"\",\"DS\",TEXT('Restavfall-Villa'!F54/'Restavfall-Villa'!C12*1000, \"0,00\"))","v":"DS"},null,"834"]
["P69","Lampor (villa)","Enheter av lampor i inom fraktionen elavfall i restavfall för villa. Antalet divideras med den sorterade vikten som därefter multipliceras med 1000 för att redovisning ska kunna ske som antal per ton (1000 kg) sorterat avfall. ","st / ton",{"$f":"IF('Restavfall-Villa'!F58=\"\",\"DS\",TEXT('Restavfall-Villa'!F58/'Restavfall-Villa'!C12*1000, \"0,00\"))","v":"DS"},null,"835"]
["P70","Batterier (villa)","Enheter av batterier, inkl. inbyggda i inom fraktionen elavfall i restavfall för villa. Antalet divideras med den sorterade vikten som därefter multipliceras med 1000 för att redovisning ska kunna ske som antal per ton (1000 kg) sorterat avfall. ","st / ton",{"$f":"IF('Restavfall-Villa'!F60=\"\",\"DS\",TEXT('Restavfall-Villa'!F60/'Restavfall-Villa'!C12*1000, \"0,00\"))","v":"DS"},null,"836"]
[null," Plockanalys restavfall flerfamiljshus (lägenhet)"]
[null,"Om kommunen gjort plockanalys i flera områden med flerfamiljshus ange värden som bedöms vara representativa för denna bebyggelsekategori. Avfall från verksamhet får inte ha ingått i moderprovet. De värden som anges ska inte vara fuktkorrigerade. "]
["P20","Typ av insamlingssystem i delområdet (lägenhet)","Förval: \nMatavfall i papperspåse i separat fack/kärl \nMatavfall i bioplastpåse i separat fack/kärl                                                                                                                                                  Matavfall i plastpåse i separata fack/kärl\nOptisk sortering - separat påse enbart för matavfall\nOptisk sortering - separata påsar för matavfall/förpackningar/returpapper           \nBlandat restavfall (dvs ej utsortering av matavfall)                                                          Annat system ",null,{"$f":"IF('Restavfall-Lgh'!C7=\"\",\"DS\",'Restavfall-Lgh'!C7)","v":"DS"},null,"458"]
["P62","Om annat system valts, beskriv systemet","En fritextruta som kan användas för beskrivning om Annat system valts. Om inget annat system används ange ET (för att kunna för 100 % i status på förstasidan).",null,{"$f":"IF(E55='Allm. Data'!A29,'Restavfall-Lgh'!C8,\"ET\")","v":"ET"},null,"NY "]
["P21","Andel hushåll med fastighetsnära insamling av förpackningar och returpapper (lägenhet)","Andelen av de hushåll  vars avfall analyserats vid plockanalysen som har fastighetsnära insamling av förpackningar och returpapper ","%",{"$f":"IF('Restavfall-Lgh'!C9=\"\",\"DS\",TEXT('Restavfall-Lgh'!C9, \"0,0\"))","v":"DS"},null,"459"]
["P22","Andel hushåll med hemkompost (lägenhet)","Andelen av de hushåll vars avfall analyserats vid plockanalysen som hemkomposterar sitt matavfall","%",{"$f":"IF('Restavfall-Lgh'!C10=\"\",\"DS\",TEXT('Restavfall-Lgh'!C10, \"0,0\"))","v":"DS"},null,"460"]
["P55","Mängd restavfall (lägenhet)","Total mängd restavfall till energiåtervinning (förbränning) uttryckt som kg per hushåll och vecka. Rimligt värde är 2-10 kg per hushåll och vecka. Värden utanför detta intervall rosamarkeras. ET får INTE användas. Om uppgifter ej finns ange DS eller lämna tomt. OBS! Värdet avser mängd i genomförd plockanalysundersökning, inte genomsnittet i kommunen. ","kg/hushåll och vecka",{"$f":"IF('Restavfall-Lgh'!C11=\"\",\"DS\",TEXT('Restavfall-Lgh'!C11, \"0,00\"))","v":"DS"},"2-10","724"]
["P41","Andel matavfall (lägenhet)","Andel matrester, kött- och fiskrester, frukt- och grönsaksskal, blast, kaffe- och tesump, kaffefilter, tepåse, äggskal, bröd, frukt, grönsaker, flytande matavfall. Rimligt värde är 2-60%. Värden utanför detta intervall rosamarkeras.","%",{"$f":"TEXT('Restavfall-Lgh'!E19, \"0,0\")","v":"DS"},"2-60","539"]
["P56","  varav andel onödigt matavfall (lägenhet)","Onödigt matavfall (matsvinn) utgörs av rester och rens från tillagade och råa livsmedel, brukar kallas matsvinn. (Oundvikligt matavfall utgörs av kärnor, skal och ben, d.v.s. delar av livsmedlet som normalt inte äts upp.) Utgör andel av matavfall (P41). Rimligt värde är 1-30%. Värden utanför detta intervall rosamarkeras.","%",{"$f":"TEXT('Restavfall-Lgh'!G16, \"0,0\")","v":"DS"},"1-30","725"]
["P23","Andel trädgårdsavfall (lägenhet)","Andel frukt- och växtdelar från egen odling, snittblommor, krukväxter, grenar, kvistar och jord. Rimligt värde är 1-10%. Värden utanför detta intervall rosamarkeras.","%",{"$f":"TEXT('Restavfall-Lgh'!E20, \"0,000\")","v":"DS"},"1-10","461"]
["P24","Andel returpapper (lägenhet)","Andel trycksaker inkl. tidningar, broschyrer, kataloger, reklamblad, skrivpapper och kvitton, böcker med mjuk pärm, kollegieblock m.m. Rimligt värde är 1-30%. Värden utanför detta intervall rosamarkeras.","%",{"$f":"TEXT('Restavfall-Lgh'!E24, \"0,00\")","v":"DS"},"1-30","462"]
["P24a","   varav  tidningar (lägenhet)","Dags- och veckotidningar. Utgör andel av returpapper (P24).","%",{"$f":"TEXT('Restavfall-Lgh'!G22, \"0,00\")","v":"DS"},null,"837"]
["P24b","   varav reklamblad (lägenhet)","Reklamblad, produktkataloger m.m. Utgör andel av returpapper (P24).","%",{"$f":"TEXT('Restavfall-Lgh'!G23, \"0,00\")","v":"DS"},null,"838"]
["P25","Andel pappersförpackningar, inkl avfallsbärare med producentansvar och wellpapp (lägenhet)","Andel förpackningar av papper (minst 50 vikts-% papper) inklusive wellpapp. Rimligt värde är 2-30%. Värden utanför detta intervall rosamarkeras.","%",{"$f":"TEXT('Restavfall-Lgh'!E28, \"0,00\")","v":"DS"},"2-30","463"]
["P25a","Andel avfallsbärare papper med producentansvar (lägenhet)","Pappersbärkassar som säljs/tillhandahålls i handeln för att bära hem varor (utgör pappersförpackning under producentansvar) och som används som avfallsbärare. Andelen utgörs av andel totalt restavfall (P55) och inte andel av pappersförpackningar (P25). ","%",{"$f":"TEXT('Restavfall-Lgh'!E27, \"0,000\")","v":"DS"},null,"839"]
["P26","Andel plastförpackningar, inkl avfallsbärare med producentansvar och frigolit (lägenhet)","Andel förpackningar av hårdplast, mjukplast och frigolit (minst 50 vikts-% plast). Rimligt värde är 2-30%. Värden utanför detta intervall rosamarkeras.","%",{"$f":"IF(SUM('Restavfall-Lgh'!E35,'Restavfall-Lgh'!E39)=0,\"DS\",TEXT(SUM('Restavfall-Lgh'!E35,'Restavfall-Lgh'!E39), \"0,00\"))","v":"DS"},"2-30","464"]
["P26a","Andel avfallsbärare plast med producentansvar (lägenhet)","Plastbärkassar som säljs/tillhandahålls i handeln för att bära hem varor (utgör plastförpackning under producentansvar) och som används som avfallsbärare. Andelen utgörs av andel totalt restavfall (P55) och inte andel av plastförpackningar (P26). ","%",{"$f":"TEXT('Restavfall-Lgh'!E33, \"0,000\")","v":"DS"},null,"840"]
["P27","Andel glasförpackningar, färgade och ofärgade (lägenhet)","Andel förpackningar av glas (minst 50 vikts-% glas). Rimligt värde är 0,5-10%. Värden utanför detta intervall rosamarkeras.","%",{"$f":"TEXT('Restavfall-Lgh'!E46, \"0,00\")","v":"DS"},"0,5-10","465"]
["P28","Andel metallförpackningar (lägenhet)","Andel förpackningar av metall (minst 50 vikts-% metall). Rimligt värde är 0,5-10%. Värden utanför detta intervall rosamarkeras.","%",{"$f":"TEXT('Restavfall-Lgh'!E51, \"0,00\")","v":"DS"},"0,5-10","466"]
["P29","Andel övrigt brännbart (lägenhet)","Andel övrigt papper, inkl. hushållspapper och servetter, övrig plast, trä, blöjor och dylikt. Textil inkluderas inte. Rimligt värde är 10-60%. Värden utanför detta intervall rosamarkeras. ","%",{"$f":"IF(SUM('Restavfall-Lgh'!E31,'Restavfall-Lgh'!E42,'Restavfall-Lgh'!E68)=0,\"DS\",TEXT(SUM('Restavfall-Lgh'!E31,'Restavfall-Lgh'!E42,'Restavfall-Lgh'!E68), \"0,0\"))","v":"DS"},"10-60","467"]
["P29a","Andel övriga avfallsbärare, ej förpackning med producentansvar (lägenhet)","Påsar eller säckar som är avsedda för emballering av avfall, t.ex. sådana som tillhandahålls av kommunen för insamling av restavfall, förpackningar eller returpapper samt soppåsar på rulle som säljs i handeln (avser ej sopsäckar som säljs på rulle). Avser övriga avfallsbärare i både plast och papper som andel av totalen (P55).","%",{"$f":"IF(SUM('Restavfall-Lgh'!E41,'Restavfall-Lgh'!E30)=0,\"DS\",TEXT(SUM('Restavfall-Lgh'!E41,'Restavfall-Lgh'!E30), \"0,00\"))","v":"DS"},null,"841"]
["P30","Andel textilavfall (lägenhet)","Andel textilavfall i förhållande till totala mängden restavfall (P55). Rimligt värde är 0-10%. Värden utanför detta intervall rosamarkeras.","%",{"$f":"TEXT('Restavfall-Lgh'!E64, \"0,000\")","v":"DS"},"0-10","468"]
["P31","Andel övrigt icke brännbart (lägenhet)","Andel övrigt glas, övrig metall, kattsand, porslin, keramik, aska, säkringar, stenar, tegel, glasull, mm. Rimligt värde är 0-20%. Värden utanför detta intervall rosamarkeras.","%",{"$f":"IF(SUM('Restavfall-Lgh'!E47,'Restavfall-Lgh'!E52,'Restavfall-Lgh'!E53)=0,\"DS\",TEXT(SUM('Restavfall-Lgh'!E47,'Restavfall-Lgh'!E52,'Restavfall-Lgh'!E53), \"0,00\"))","v":"DS"},"0-20","469"]
["P32","Andel farligt avfall, exkl batterier och elavfall (lägenhet)","Andel farligt avfall, exklusive batterier och elavfall. Omfattar t.ex. kanyler, läkemedel, färg, lack, lim, lösningsmedel, bekämpningsmedel. Rimligt värde är 0-5%. Värden utanför detta intervall rosamarkeras.","%",{"$f":"TEXT('Restavfall-Lgh'!E57, \"0,000\")","v":"DS"},"0-5","470"]
["P33","Andel batterier (lägenhet)","Andel batterier. Rimligt värde är 0-5%. Värden utanför detta intervall rosamarkeras.","%",{"$f":"TEXT('Restavfall-Lgh'!E60, \"0,000\")","v":"DS"},"0-5","471"]
["P34","Andel elavfall (lägenhet)","Andel elavfall, exlusive batterier. Omfattar lysrör, lampor och smått elavfall. Rimligt värde är 0-5%. Värden utanför detta intervall rosamarkeras.","%",{"$f":"TEXT('Restavfall-Lgh'!E61, \"0,000\")","v":"DS"},"0-5","472"]
["P71a","Dryckesförpackningar av plast med pant (lägenhet) ","Avser  dryckesförpackningar med svensk pant, till exempel PET-flaskor. Avser inte diskmedelsförpackningar etc med pant. Antalet divideras med den sorterade vikten som därefter multipliceras med 1000 för att redovisning ska kunna ske som antal per ton (1000 kg) sorterat avfall. ","st / ton",{"$f":"IF('Restavfall-Lgh'!F36=\"\",\"DS\",TEXT('Restavfall-Lgh'!F36/'Restavfall-Lgh'!C12*1000, \"0,00\"))","v":"DS"},null,"842"]
["P71b","Dryckesförpackningar av plast utan pant (lägenhet) ","Avser PET förpackningar utan pant för drycker, såsom juice och saft. Avser inte diskmedelsförpackningar etc. Antalet divideras med den sorterade vikten som därefter multipliceras med 1000 för att redovisning ska kunna ske som antal per ton (1000 kg) sorterat avfall. ","st / ton",{"$f":"IF('Restavfall-Lgh'!F37=\"\",\"DS\",TEXT('Restavfall-Lgh'!F37/'Restavfall-Lgh'!C12*1000, \"0,00\"))","v":"DS"},null,"843"]
["P72a","Dryckesförpackningar av glas med pant (lägenhet) ","Avser dryckesförpackningar i glas med svensk pant. Antalet divideras med den sorterade vikten som därefter multipliceras med 1000 för att redovisning ska kunna ske som antal per ton (1000 kg) sorterat avfall. ","st / ton",{"$f":"IF('Restavfall-Lgh'!F43=\"\",\"DS\",TEXT('Restavfall-Lgh'!F43/'Restavfall-Lgh'!C12*1000, \"0,00\"))","v":"DS"},null,"844"]
["P72b","Dryckesförpackningar av glas utan pant (lägenhet) ","Avser dryckesförpackningar i glas utan pant. Antalet divideras med den sorterade vikten som därefter multipliceras med 1000 för att redovisning ska kunna ske som antal per ton (1000 kg) sorterat avfall. ","st / ton",{"$f":"IF('Restavfall-Lgh'!F44=\"\",\"DS\",TEXT('Restavfall-Lgh'!F44/'Restavfall-Lgh'!C12*1000, \"0,00\"))","v":"DS"},null,"845"]
["P73a","Dryckesförpackningar av metall med pant (lägenhet) ","Avser dryckesförpackningar i metall med  svensk pant. Antalet divideras med den sorterade vikten som därefter multipliceras med 1000 för att redovisning ska kunna ske som antal per ton (1000 kg) sorterat avfall. ","st / ton",{"$f":"IF('Restavfall-Lgh'!F48=\"\",\"DS\",TEXT('Restavfall-Lgh'!F48/'Restavfall-Lgh'!C12*1000, \"0,00\"))","v":"DS"},null,"846"]
["P73b","Dryckesförpackningar av metall utan pant (lägenhet) ","Avser dryckesförpackningar i metall utan pant. Avser inte konservburkar. Antalet divideras med den sorterade vikten som därefter multipliceras med 1000 för att redovisning ska kunna ske som antal per ton (1000 kg) sorterat avfall. ","st / ton",{"$f":"IF('Restavfall-Lgh'!F49=\"\",\"DS\",TEXT('Restavfall-Lgh'!F49/'Restavfall-Lgh'!C12*1000, \"0,00\"))","v":"DS"},null,"847"]
["P74","Kanyler (lägenhet)","Enheter av kanyler i inom fraktionen farligt avfall i restavfall för lägenhet. Antalet divideras med den sorterade vikten som därefter multipliceras med 1000 för att redovisning ska kunna ske som antal per ton (1000 kg) sorterat avfall. ","st / ton",{"$f":"IF('Restavfall-Lgh'!F54=\"\",\"DS\",TEXT('Restavfall-Lgh'!F54/'Restavfall-Lgh'!C12*1000, \"0,00\"))","v":"DS"},null,"848"]
["P75","Lampor (lägenhet)","Enheter av lampor i inom fraktionen elavfall i restavfall för lägenhet. Antalet divideras med den sorterade vikten som därefter multipliceras med 1000 för att redovisning ska kunna ske som antal per ton (1000 kg) sorterat avfall. ","st / ton",{"$f":"IF('Restavfall-Lgh'!F58=\"\",\"DS\",TEXT('Restavfall-Lgh'!F58/'Restavfall-Lgh'!C12*1000, \"0,00\"))","v":"DS"},null,"849"]
["P76","Batterier inkl. inbyggda  (lägenhet)","Enheter av batterier, inkl. inbyggda i inom fraktionen elavfall i restavfall för lägenhet. Antalet divideras med den sorterade vikten som därefter multipliceras med 1000 för att redovisning ska kunna ske som antal per ton (1000 kg) sorterat avfall. ","st / ton",{"$f":"IF('Restavfall-Lgh'!F60=\"\",\"DS\",TEXT('Restavfall-Lgh'!F60/'Restavfall-Lgh'!C12*1000, \"0,00\"))","v":"DS"},null,"850"]
[null,"Plockanalys matavfall villa"]
[null,"Om kommunen gjort plockanalys i flera områden med en- och tvåfamiljshus ange värden som bedöms vara representativa för denna bebyggelsekategori. Avfall från verksamhet får inte ha ingått i moderprovet. De värden som anges ska inte vara fuktkorrigerade. "]
["P35","Typ av insamlingssystem i delområdet (villa)","Förval: \nMatavfall i papperspåse i separat en- eller tvåfackskärl\nMatavfall i bioplastpåse i separat en- eller tvåfackskärl\nMatavfall i plastpåse i separat en- eller tvåfackskärl\nMatavfall i papperspåse i fyrfackskärl \nMatavfall i bioplastpåse i fyrfackskärl                                                               Matavfall i plastpåse i fyrfackskärl\nOptisk sortering - separat påse enbart för matavfall\nOptisk sortering - separata påsar för matavfall/förpackningar/returpapper           Blandat restavfall (dvs ej utsortering av matavfall)\nAnnat system",null,{"$f":"IF('Matavfall-Villa'!C7=\"\",\"DS\",'Matavfall-Villa'!C7)","v":"DS"},null,"473"]
["P63","Om annat system valts, beskriv systemet","En fritextruta som kan användas för beskrivning om Annat system valts. Om inget annat system används ange ET (för att kunna för 100 % i status på förstasidan).",null,{"$f":"IF(E90='Allm. Data'!A20,'Matavfall-Villa'!C8,\"ET\")","v":"ET"},null,"NY "]
["P36","Andel hushåll med fastighetsnära insamling av förpackningar och returpapper (villa)","Andelen av de hushåll vars avfall analyserats vid plockanalysen som har fastighetsnära insamling av förpackningar och returpapper.","%",{"$f":"IF('Matavfall-Villa'!C9=\"\",\"DS\",TEXT('Matavfall-Villa'!C9, \"0,00\"))","v":"DS"},null,"474"]
["P57","Mängd matavfall (villa)","Total mängd matavfall (i genomförd plockanalysundersökning, inte snittet i kommunen) till biologisk behandling gällande villa (en- och tvåfamiljshus) uttryckt som kg per hushåll och vecka. Rimligt värde är 1-5 kg per hushåll och vecka. Värden utanför detta intervall rosamarkeras. ET får INTE användas. Om uppgifter ej finns ange DS eller lämna tomt.","kg/hushåll och vecka",{"$f":"IF('Matavfall-Villa'!C10=\"\",\"DS\",'Matavfall-Villa'!C10)","v":"DS"},"1-5","726"]
["P58","Andel onödigt matavfall (villa)","Onödigt matavfall (matsvinn) utgörs av rester och rens från tillagade och råa livsmedel, brukar kallas matsvinn. (Oundvikligt matavfall utgörs av kärnor, skal och ben, d.v.s. delar av livsmedlet som normalt inte äts upp). Utgör andel av matavfall exkl. avfallsbärare och felsorterat avfall. Rimligt värde är 10-30%. Värden utanför detta intervall rosamarkeras.  ","%",{"$f":"TEXT('Matavfall-Villa'!E14, \"0,00\")","v":"DS"},"10-30","732"]
["P58a","Andel avfallsbärare matavfall (villa)","Påsar eller säckar som är avsedda för emballering av matavfall så kallad dedikerad avfallsbärare. ","%",{"$f":"TEXT('Matavfall-Villa'!D17, \"0,00\")","v":"DS"},null,"851"]
["P37","Andel felsorterat avfall i matavfall (villa)","Andel avfall i matavfallsfraktionen som inte utgörs av matavfall enligt Avfall Sveriges manual. Felsorterat avfall kan vara farligt avfall, batterier, elavfall, förpackningar/returpapper, trädgårdsavfall samt övrigt brännbart eller icke brännbart avfall. Påsen som matavfallet samlats in i ska inte räknas in. Värde gäller max 3 år. OBS! Här ska ni INTE använda ET då ni saknar indata. Ange istället DS. Rimligt värde är 0-20%. Värden utanför detta intervall rosamarkeras. ","%",{"$f":"IF('Matavfall-Villa'!D46=0,\"DS\",TEXT('Matavfall-Villa'!D46, \"0,00\"))","v":"DS"},"0-20","475"]
["P49","Andel farligt avfall och elavfall (villa)","Felsorterat avfall i form av farligt avfall, batterier, elavfall. Värde gäller max 3 år. OBS! Här ska ni INTE använda ET då ni saknar indata. Ange istället DS. Rimligt värde är 0-0,5%. Värden utanför detta intervall rosamarkeras. ","%",{"$f":"IF('Matavfall-Villa'!E47=0,\"DS\",TEXT('Matavfall-Villa'!E47, \"0,000\"))","v":"DS"},"0-0,5","663"]
["P50","Andel övrigt felsorterat (villa)","Felsorterat avfall i form av förpackningar/returpapper, trädgårdsavfall samt övrigt brännbart eller icke brännbart avfall. Påsen som matavfallet samlats in i ska inte räknas in. Värde gäller max 3 år. OBS! Här ska ni INTE använda ET då ni saknar indata. Ange istället DS. Rimligt värde är 0-20%. Värden utanför detta intervall gulmarkeras. ","%",{"$f":"IF('Matavfall-Villa'!E48=0,\"DS\",TEXT('Matavfall-Villa'!E48, \"0,00\"))","v":"DS"},"0-20","664"]
[null," Plockanalys matavfall flerfamiljshus (lägenhet)"]
[null,"Om kommunen gjort plockanalys i flera områden med flerfamiljshus ange värden som bedöms vara representativa för denna bebyggelsekategori. Avfall från verksamhet får inte ha ingått i moderprovet. De värden som anges ska inte vara fuktkorrigerade. "]
["P38","Typ av insamlingssystem i delområdet (lägenhet)","Förval: \nMatavfall i papperspåse i separat fack/kärl\nMatavfall i bioplastpåse i separat fack/kärl                                                      Matavfall i plastpåse i separata fack/kärl\nOptisk sortering - separat påse enbart för matavfall\nOptisk sortering - separata påsar för matavfall/förpackningar/returpapper           \nBlandat restavfall (dvs ej utsortering av matavfall)\nAnnat system",null,{"$f":"IF('Matavfall-Lgh'!C7=\"\",\"DS\",'Matavfall-Lgh'!C7)","v":"DS"},null,"476"]
["P64","Om annat system valts, beskriv systemet","En fritextruta som kan användas för beskrivning om Annat system valts. Om inget annat system används ange ET (för att kunna för 100 % i status på förstasidan).",null,{"$f":"IF(E101='Allm. Data'!A29,'Matavfall-Lgh'!C8,\"ET\")","v":"ET"},null,"NY "]
["P39","Andel hushåll med fastighetsnära insamling av förpackningar och returpapper (lägenhet)","Andelen av de hushåll vars avfall analyserats vid plockanalysen som har fastighetsnära insamling av förpackningar och returpapper.","%",{"$f":"IF('Matavfall-Lgh'!C9=\"\",\"DS\",TEXT('Matavfall-Lgh'!C9, \"0,00\"))","v":"DS"},null,"477"]
["P59","Mängd matavfall (lägenhet)","Total mängd matavfall (i genomförd plockanalysundersökning, inte snittet i kommunen) till biologisk behandling gällande lägenhet i flerfamiljshus uttryckt som kg per hushåll och vecka. Rimligt värde är 1-5 kg per hushåll och vecka. Värden utanför detta intervall rosamarkeras. ET får INTE användas. Om uppgifter ej finns ange DS eller lämna tomt. ","kg/hushåll och vecka",{"$f":"IF('Matavfall-Lgh'!C10=\"\",\"DS\",'Matavfall-Lgh'!C10)","v":"DS"},"1-5","728"]
["P60","Andel onödigt matavfall (lägenhet)","Onödigt matavfall (matsvinn) utgörs av rester och rens från tillagade och råa livsmedel, brukar kallas matsvinn. Mjukpapper sorteras som en separat fraktion vid sidan av det egentliga matavfallet. (Oundvikligt matavfall utgörs av kärnor, skal och ben, d.v.s. delar av livsmedlet som normalt inte äts upp). Utgör andel av matavfall exkl. avfallsbärare och felsorterat avfall. Rimligt värde är 10-30%. Värden utanför detta intervall rosamarkeras. ","%",{"$f":"TEXT('Matavfall-Lgh'!E14, \"0,00\")","v":"DS"},"10-30","729"]
["P60a","Andel avfallsbärare matavfall (lägenhet)","Påsar eller säckar som är avsedda för emballering av matavfall så kallad dedikerad avfallsbärare. ","%",{"$f":"TEXT('Matavfall-Lgh'!D17, \"0,00\")","v":"DS"},null,"853"]
["P40","Andel felsorterat avfall i matavfall (lägenhet)","Andel avfall i matavfallsfraktionen som inte utgörs av matavfall enligt Avfall Sveriges manual. Felsorterat avfall kan vara farligt avfall, batterier, elavfall, förpackningar/returpapper, trädgårdsavfall samt övrigt brännbart eller icke brännbart avfall. Påsen som matavfallet samlats in i ska inte räknas in. Värde gäller max 3 år. OBS! Här ska ni INTE använda ET då ni saknar indata. Ange istället DS. Rimligt värde är 0-20%. Värden utanför detta intervall rosamarkeras. ","%",{"$f":"IF('Matavfall-Lgh'!D46=0,\"DS\",TEXT('Matavfall-Lgh'!D46, \"0,00\"))","v":"DS"},"0-20","478"]
["P51","Andel farligt avfall och elavfall (lägenhet)","Felsorterat avfall i form av farligt avfall, batterier, elavfall. Värde gäller max 3 år. OBS! Här ska ni INTE använda ET då ni saknar indata. Ange istället DS. Rimligt värde är 0-0,5%. Värden utanför detta intervall rosamarkeras. ","%",{"$f":"IF('Matavfall-Lgh'!E47=0,\"DS\",TEXT('Matavfall-Lgh'!E47, \"0,000\"))","v":"DS"},"0-0,5","665"]
["P52","Andel övrigt felsorterat (lägenhet)","Felsorterat avfall i form av förpackningar/returpapper, trädgårdsavfall samt övrigt brännbart eller icke brännbart avfall. Påsen som matavfallet samlats in i ska inte räknas in. Värde gäller max 3 år. OBS! Här ska ni INTE använda ET då ni saknar indata. Ange istället DS. Rimligt värde är 0-20%. Värden utanför detta intervall gulmarkeras. ","%",{"$f":"IF('Matavfall-Lgh'!E48=0,\"DS\",TEXT('Matavfall-Lgh'!E48, \"0,00\"))","v":"DS"},"0-20","666"]
[null,"Kommunen i sin helhet, ej verksamheter, andel"]
[null,"Om kommunen gjort plockanalys i flera områden ange värden som bedöms vara representativa för kommunen eller ange viktat medelvärde. De värden som anges ska inte vara fuktkorrigerade. "]
["P1","Andel farligt avfall i restavfall","Beräknat på totala mängden restavfall (tidigare benämnt brännbart kärl- och säckavfall) utifrån plockanalys. Restavfall utgör blandat brännbart avfall i kommuner utan matavfallsinsamling och utsorterad brännbar fraktion i kommuner med matavfallsinsamling. Farligt avfall är exklusive batterier och elavfall. Värde gäller max 3 år. OBS! Här ska ni INTE använda ET då ni saknar indata. Ange istället DS. Indata utgår inom några år. ","%",{"$f":"IF(Övergripande!B7=\"\", \"DS\",TEXT(Övergripande!B7, \"0,00\"))","v":"DS"},null,"92"]
["P2","Andel elavfall i restavfall","Beräknat på totala mängden restavfall (tidigare benämnt brännbart kärl- och säckavfall) utifrån plockanalys. Restavfall utgör blandat brännbart avfall i kommuner utan matavfallsinsamling och utsorterad brännbar fraktion i kommuner med matavfallsinsamling. Elavfall är inklusive batterier. Värde gäller max 3 år. OBS! Här ska ni INTE använda ET då ni saknar indata. Ange istället DS. Indata utgår inom några år.","%",{"$f":"IF(Övergripande!B8=\"\", \"DS\",TEXT(Övergripande!B8, \"0,00\"))","v":"DS"},null,"93"]
["P3","Andel förpackningar och returpapper i restavfall","Beräknat på totala mängden restavfall (tidigare benämnt brännbart kärl- och säckavfall) utifrån plockanalys. Restavfall utgör blandat brännbart avfall i kommuner utan matavfallsinsamling och utsorterad brännbar fraktion i kommuner med matavfallsinsamling. Värde gäller max 3 år. OBS! Här ska ni INTE använda ET då ni saknar indata. Ange istället DS. Indata utgår inom några år.","%",{"$f":"IF(Övergripande!B9=\"\", \"DS\",TEXT(Övergripande!B9, \"0,00\"))","v":"DS"},null,"120"]
[null,"Plockkanalys grovavfall","Resultat från plockanalys av  brännbart grovavfall \nfrån återvinningscentraler"]
[null,"För att få registrera värden i Avfall Web måste nyckelanvisningarna i manual för plockanalys av grovavfall (rapport 2016:30) i allt väsentligt ha följts"]
["P93","Information om plockanalysen","Fritextfält: Beskriv relevanta uppgifter om plockanalysen, t.ex. syfte, om det är grovavfall från ÅVC eller från fastighetsnära insamling och förekomst av verksamheter. De data som registreras ska ha tagits fram genom plockanalys där Avfall Sveriges manual i allt väsentligt har följts. Om några mindre väsentliga metodavvikelser gjorts, notera dessa. ",null,{"$f":"IF(Grovavfall!B7=\"\",\"DS\",Grovavfall!B7)","v":"DS"},null,"854"]
["P94","Mängd grovavfall","Vikt på provet grovavfall (brännbar fraktion) i genomförd plockanalys, inte snittet i kommunen) uttryckt som kg. ","kg",{"$f":"TEXT(Grovavfall!B8, \"0,0\")","v":"DS"},null,"855"]
["P95","Träavfall, andel","Målat och omålat trä. Ej impregnerat trä. ","%",{"$f":"TEXT(Grovavfall!C11, \"0,00\")","v":"DS"},null,"856"]
["P96","Trädgårdsavfall, andel","Ris och grenar, löv, gräs och planeringsjord samt fallfrukt","%",{"$f":"TEXT(Grovavfall!C12, \"0,00\")","v":"DS"},null,"857"]
["P97","Papper och kartong, andel",null,"%",{"$f":"TEXT(Grovavfall!C13, \"0,00\")","v":"DS"},null,"858"]
["P98","Förpackningar och returpapper, andel","Tidningar och annat returpapper, samt förpackningar av papper inkl well, plast, metall, och glas","%",{"$f":"TEXT(Grovavfall!C14, \"0,00\")","v":"DS"},null,"859"]
["P99","Kommunplast (ej förpackningar), andel","Hård- respektive mjukplast som inte är förpackningar","%",{"$f":"TEXT(Grovavfall!C15, \"0,00\")","v":"DS"},null,"860"]
["P100","Metall, andel","Metallskrot. Ej metallförpackningar","%",{"$f":"TEXT(Grovavfall!C16, \"0,00\")","v":"DS"},null,"861"]
["P101","Inert avfall, andel","Icke brännbart isoleringsmaterial, fyllnadsmassor, glas (ej förpackningar), gips samt övrigt inert avfall","%",{"$f":"TEXT(Grovavfall!C17, \"0,00\")","v":"DS"},null,"862"]
["P102","Farligt avfall, inkl elavfall, andel","Impregnerat trä, asbest, färg och lösningsmedel, stickande/skärande avfall samt läkemedel. Elavfall såsom ljuskällor, bilbatterier, bärbara batterier och smått alavfall.","%",{"$f":"TEXT(Grovavfall!C18, \"0,00\")","v":"DS"},null,"863"]
["P103","Textilier, andel","Kläder och andra textilier, accessoarer, stoppade textiier","%",{"$f":"TEXT(Grovavfall!C19, \"0,00\")","v":"DS"},null,"864"]
["P104","Övrigt avfall, andel","Mat- och restavfall, möbler i trä, bildäck samt övrigt brännbart grovavfall","%",{"$f":"TEXT(Grovavfall!C20, \"0,00\")","v":"DS"},null,"865"]

{"sheet":"Allm. Data","index":9,"n_rows":80,"n_cols":4,"rows_kept":80,"cut":false,"hidden":false,"merged":[[0,0,0,3],[8,0,8,3],[30,0,30,3],[2,0,2,3]]}
["Plockanalyser - Underliggande informantion för sammanställning"]
[]
["Texter för val av utförare av plockanalyser"]
["Egen regi"]
["Upphandlad utförare av sorteringen"]
["Upphandlad utförare hela projektet"]
["Annat alternativ"]
[]
["Texter för val av insamlingssystem för restavfall och matavfall"]
["Förval - villa: (kod P4 och P35)"]
["Matavfall i papperspåse i separat en- eller tvåfackskärl "]
["Matavfall i bioplastpåse i separat en- eller tvåfackskärl"]
["Matavfall i plastpåse i separat en- eller tvåfackskärl"]
["Matavfall i papperspåse i fyrfackskärl "]
["Matavfall i bioplastpåse i fyrfackskärl"]
["Matavfall i plastpåse i fyrfackskärl"]
["Optisk sortering - separat påse enbart för matavfall"]
["Optisk sortering - separata påsar för matavfall/förpackningar/returpapper"]
["Blandat restavfall (dvs ej utsortering av matavfall)"]
["Annat system"]
[]
["Förval - flerfamiljshus (kod P20 och P38)"]
["Matavfall i papperspåse i separat fack/kärl"]
["Matavfall i bioplastpåse i separat fack/kärl"]
["Matavfall i plastpåse i separata fack/kärl"]
["Optisk sortering - separat påse enbart för matavfall"]
["Optisk sortering - separata påsar för matavfall/förpackningar/returpapper"]
["Blandat restavfall (dvs ej utsortering av matavfall) "]
["Annat system"]
[]
["Gränser för varning - värden utanför gränserna rosamarkeras",null,"Intervall"]
["Restavfall - Villa",null,"Undre","övre"]
["Mängd restavfall till förbränning (villa)","P53",2,10]
["Andel matavfall, inkl mjukpapper (villa)","P7",10,50]
["   varav andel onödigt matavfall (villa)","P54",1,30]
["Andel trädgårdsavfall (villa)","P8",1,20]
["Andel returpapper (villa)","P9",1,30]
["Andel pappersförpackningar, inkl wellpapp (villa)","P10",2,30]
["Andel plastförpackningar, inkl frigolit (villa)","P11",2,30]
["Andel glasförpackningar, färgade och ofärgade (villa)","P12",0.5,10]
["Andel metallförpackningar (villa)","P13",0.5,10]
["Andel övrigt brännbart (villa)","P14",10,60]
["Andel textilavfall (villa)","P15",0.01,10]
["Andel övrigt icke brännbart (villa)","P16",0.01,30]
["Andel farligt avfall, exkl batterier och elavfall (villa)","P17",0.01,5]
["Andel batterier (villa)","P18",0.01,5]
["Andel elavfall (villa)","P19",0.01,5]
[]
[]
["Matavfall - Villa",null,"Undre","övre"]
["Mängd matavfall till biologisk behandling (villa)","P57",1,5]
["Andel onödigt matavfall (villa)","P58",10,30]
["Andel felsorterat avfall i matavfall (villa)","P37",0.01,20]
["Andel farligt avfall och elavfall","P49",0.01,0.5]
["Andel övrigt felsorterat","P50",0.01,20]
[]
["Restavfall - Flerfamiljshus (lägenhet)",null,"Undre","övre"]
["Mängd restavfall till förbränning (villa)","P55",2,10]
["Andel matavfall, inkl mjukpapper (villa)","P41",10,50]
["   varav andel onödigt matavfall (villa)","P56",1,30]
["Andel trädgårdsavfall (villa)","P23",1,20]
["Andel returpapper (villa)","P24",1,30]
["Andel pappersförpackningar, inkl wellpapp (villa)","P25",2,30]
["Andel plastförpackningar, inkl frigolit (villa)","P26",2,30]
["Andel glasförpackningar, färgade och ofärgade (villa)","P27",0.5,10]
["Andel metallförpackningar (villa)","P28",0.5,10]
["Andel övrigt brännbart (villa)","P29",10,60]
["Andel textilavfall (villa)","P30",0.01,10]
["Andel övrigt icke brännbart (villa)","P31",0.01,30]
["Andel farligt avfall, exkl batterier och elavfall (villa)","P32",0.01,5]
["Andel batterier (villa)","P33",0.01,5]
["Andel elavfall (villa)","P34",0.01,5]
[]
[]
["Matavfall - Flerfamiljshus (lägenhet)",null,"Undre","övre"]
["Mängd matavfall till biologisk behandling (villa)","P59",1,5]
["Andel onödigt matavfall (villa)","P60",10,30]
["Andel felsorterat avfall i matavfall (villa)","P40",0.01,20]
["Andel farligt avfall och elavfall","P51",0.01,0.5]
["Andel övrigt felsorterat","P52",0.01,20]